Workbook

Sheet input and diagram
N2: process capability
B4: i | C4: xi | E4: i | F4: xi | H4: i | I4: xi | K4: i | L4: xi | N4: value could be changed
B5: 1 | C5: 20 | E5: 51 | F5: 18.8 | H5: 101 | I5: 16.9 | K5: 151 | N5: value is calculated (sheet calculation)
B6: 2 | C6: 21 | E6: 52 | F6: 17.1 | H6: 102 | I6: 19.5 | K6: 152
B7: 3 | C7: 21.5 | E7: 53 | F7: 18.6 | H7: 103 | I7: 20.4 | K7: 153 | N7: part: | O7: Halter
B8: 4 | C8: 19 | E8: 54 | F8: 18 | H8: 104 | I8: 20 | K8: 154 | N8: part number: | O8: C2G234824ß
B9: 5 | C9: 19 | E9: 55 | F9: 18.7 | H9: 105 | K9: 155 | N9: drawing: | O9: UZT1340124357
B10: 6 | C10: 20.4 | E10: 56 | F10: 20.3 | H10: 106 | K10: 156 | N10: inspector: | O10: Maier
B11: 7 | C11: 18.3 | E11: 57 | F11: 18.7 | H11: 107 | K11: 157 | N11: measuring device: | O11: Waage 47.22452
B12: 8 | C12: 19.9 | E12: 58 | F12: 18.8 | H12: 108 | K12: 158 | N12: date: | O12: 2014-12-10
B13: 9 | C13: 18.7 | E13: 59 | F13: 19.4 | H13: 109 | K13: 159 | N13: attribute: | O13: length
B14: 10 | C14: 18 | E14: 60 | F14: 18.5 | H14: 110 | K14: 160 | N14: measuring unit: | O14: mm
B15: 11 | C15: 17.7 | E15: 61 | F15: 18.6 | H15: 111 | K15: 161 | N15: nominal value = | P15: 19
B16: 12 | C16: 19.1 | E16: 62 | F16: 19.6 | H16: 112 | K16: 162 | N16: lower spec. limit LSL = | P16: 16
B17: 13 | C17: 19.7 | E17: 63 | F17: 18.5 | H17: 113 | K17: 163 | N17: upper specifications limit LSL = | P17: 23
B18: 14 | C18: 18.1 | E18: 64 | F18: 20 | H18: 114 | K18: 164 | N18: number of classes histogram = | P18: 12
B19: 15 | C19: 18.4 | E19: 65 | F19: 17.8 | H19: 115 | K19: 165 | N19: Cmk< | O19: 1.33 | P19: process not capable
B20: 16 | C20: 17.5 | E20: 66 | F20: 19.8 | H20: 116 | K20: 166 | N20: Cmk | O20: dazwischen | P20: process limited capable
B21: 17 | C21: 18.9 | E21: 67 | F21: 16.6 | H21: 117 | K21: 167 | N21: Cmk> | O21: 1.66 | P21: process capable
B22: 18 | C22: 19 | E22: 68 | F22: 19.4 | H22: 118 | K22: 168
B23: 19 | C23: 20.5 | E23: 69 | F23: 19.3 | H23: 119 | K23: 169 | N23: sample size | P23: =Anzahl -> 104
B24: 20 | C24: 17.3 | E24: 70 | F24: 20.1 | H24: 120 | K24: 170 | N24: mid m | P24: =Mittelwert -> 18.87980769
B25: 21 | C25: 18.3 | E25: 71 | F25: 20.5 | H25: 121 | K25: 171 | N25: standard deviation s | P25: =Standardabweichung -> 1.184067353
B26: 22 | C26: 18.4 | E26: 72 | F26: 20 | H26: 122 | K26: 172 | N26: values are | P26: =IF(calculation!BM20<0.05,"not normal dist","normal distributed") -> normal distributed
B27: 23 | C27: 18.6 | E27: 73 | F27: 20.8 | H27: 123 | K27: 173
B28: 24 | C28: 19.8 | E28: 74 | F28: 17.7 | H28: 124 | K28: 174 | N28: Propability values | O28: Cmu | P28: =CPU -> 0.810710552
B29: 25 | C29: 20.2 | E29: 75 | F29: 18.9 | H29: 125 | K29: 175 | O29: Cmo | P29: =CPO -> 1.159898069
B30: 26 | C30: 18.5 | E30: 76 | F30: 18.8 | H30: 126 | K30: 176 | O30: Cm | P30: =CP -> 0.9853043103
B31: 27 | C31: 18.5 | E31: 77 | F31: 16.4 | H31: 127 | K31: 177 | O31: Cmk | P31: =CPK -> 0.810710552
B32: 28 | C32: 18 | E32: 78 | F32: 18.5 | H32: 128 | K32: 178 | N32: ="evaluation cpk =>" -> evaluation cpk => | P32: =IF(P31<O19,P19,IF(P31>O21,P21,P20)) -> process not capable
B33: 29 | C33: 20.9 | E33: 79 | F33: 19 | H33: 129 | K33: 179
B34: 30 | C34: 18.1 | E34: 80 | F34: 20.6 | H34: 130 | K34: 180 | N34: median z | P34: =Median -> 18.9
B35: 31 | C35: 19.4 | E35: 81 | F35: 19.2 | H35: 131 | K35: 181 | N35: range R | P35: =Spannweite -> 5.4
B36: 32 | C36: 20.5 | E36: 82 | F36: 17.1 | H36: 132 | K36: 182 | N36: minimum | P36: =Minimum -> 16.1
B37: 33 | C37: 20.4 | E37: 83 | F37: 16.3 | H37: 133 | K37: 183 | N37: maximum | P37: =Maximum -> 21.5
B38: 34 | C38: 16.1 | E38: 84 | F38: 17.2 | H38: 134 | K38: 184
B39: 35 | C39: 18.7 | E39: 85 | F39: 17.9 | H39: 135 | K39: 185 | N39: calculated performance in ppm
B40: 36 | C40: 18.8 | E40: 86 | F40: 19.1 | H40: 136 | K40: 186 | N40: exceedance | O40: pLSL | P40: =BERPUGW -> 7505.125075
B41: 37 | C41: 17.3 | E41: 87 | F41: 17.3 | H41: 137 | K41: 187 | O41: pUSL | P41: =BERPOGW -> 250.9931974
B42: 38 | C42: 18.1 | E42: 88 | F42: 19.4 | H42: 138 | K42: 188 | O42: p | P42: =BERP -> 7756.118273
B43: 39 | C43: 19.9 | E43: 89 | F43: 18.3 | H43: 139 | K43: 189
B44: 40 | C44: 19.6 | E44: 90 | F44: 19.3 | H44: 140 | K44: 190 | N44: observed performance in ppm
B45: 41 | C45: 18.4 | E45: 91 | F45: 17.2 | H45: 141 | K45: 191 | N45: exceedance | O45: pLSL | P45: =BEOBPUGW -> 0
B46: 42 | C46: 19.5 | E46: 92 | F46: 17.5 | H46: 142 | K46: 192 | O46: pUSL | P46: =BEOBPOGW -> 0
B47: 43 | C47: 16.8 | E47: 93 | F47: 19.6 | H47: 143 | K47: 193 | O47: p | P47: =BEOBPPM -> 0
B48: 44 | C48: 17.1 | E48: 94 | F48: 17.6 | H48: 144 | K48: 194 | R48: The calculation needs macros activated
B49: 45 | C49: 18.9 | E49: 95 | F49: 20 | H49: 145 | K49: 195 | N49: E-Mail: | O49: =HYPERLINK("mailto:roland.schnurr@sixsigmablackbelt.de","roland.schnurr@sixsigmablackbelt.de") -> roland.schnurr@sixsigmablackbelt.de
B50: 46 | C50: 19.7 | E50: 96 | F50: 19.9 | H50: 146 | K50: 196 | N50: Homepage: | O50: =HYPERLINK("http://www.sixsigmablackbelt.de","www.sixsigmablackbelt.de") -> www.sixsigmablackbelt.de
B51: 47 | C51: 19.7 | E51: 97 | F51: 16.9 | H51: 147 | K51: 197 | N51: Ressources:
B52: 48 | C52: 19.2 | E52: 98 | F52: 19.5 | H52: 148 | K52: 198 | N52: =HYPERLINK("http://www.amazon.de/gp/product/3837051560/ref=as_li_tf_tl?ie=UTF8&camp=1638&creative=6742&creativeASIN=3837051560&linkCode=as2&tag=httpwwwsixsigma-21","Statistics") -> Statistics
B53: 49 | C53: 20.6 | E53: 99 | F53: 20.4 | H53: 149 | K53: 199 | N53: =HYPERLINK("http://www.amazon.de/gp/product/3446417842/ref=as_li_tf_tl?ie=UTF8&camp=1638&creative=6742&creativeASIN=3446417842&linkCode=as2&tag=httpwwwsixsigma-21","Quality engineering") -> Quality engineering
B54: 50 | C54: 20.1 | E54: 100 | F54: 19.1 | H54: 150 | K54: 200
AP205: Summe

Sheet calculation
N2: Prozess- und Maschinenfähigkeit | AD2: random sample chronological | AU2: Wahrscheinlichkeitsnetz | BC2: Test auf Normalverteilung (Anderson Darling)
AQ3: Beobachteter Überschr
B4: i | C4: xi | E4: i | F4: xi | H4: i | I4: xi | K4: i | L4: xi | AD4: Zähler | AE4: X Wert | AF4: Y Wert | AG4: USL | AH4: LSL | AI4: =" - 1 Sigma" -> - 1 Sigma | AJ4: =" + 1 Sigma" -> + 1 Sigma | AK4: ="- 2 Sigma" -> - 2 Sigma | AL4: =" + 2 Sigma" -> + 2 Sigma | AM4: =" - 3 Sigma" -> - 3 Sigma | AN4: =" + 3 Sigma" -> + 3 Sigma | AO4: mid | AQ4: PUGW | AR4: POGW | AV4: u | AW4: x-quer+u∙s | AX4: Helfer | AY4: Fehlerindikator | BC4: i | BD4: xi sortiert | BE4: Zähler | BG4: BG | BI4: S | BJ4: z | BL4: Wert | BM4: z
B5: 1 | C5: =IF('input and diagram'!C5="","",'input and diagram'!C5) -> 20 | E5: 51 | F5: =IF('input and diagram'!F5="","",'input and diagram'!F5) -> 18.8 | H5: 101 | I5: =IF('input and diagram'!I5="","",'input and diagram'!I5) -> 16.9 | K5: 151 | L5: =IF('input and diagram'!L5="","",'input and diagram'!L5) ->  | O5: Datum: | P5: =Datum -> 2014-12-10 | AD5: 1 | AE5: =IF((Anzahl>AD5),AD5,Anzahl) -> 1 | AF5: =IF(C5<>"",C5,1) -> 20 | AG5: =IF(C5<>"",OGW,AG4) -> 23 | AH5: =IF(C5<>"",UGW,AH4) -> 16 | AI5: =Mittelwert-Standardabweichung -> 17.69574034 | AJ5: =Mittelwert+Standardabweichung -> 20.06387505 | AK5: =Mittelwert-2*Standardabweichung -> 16.51167299 | AL5: =Mittelwert+2*Standardabweichung -> 21.2479424 | AM5: =Mittelwert-3*Standardabweichung -> 15.32760563 | AN5: =Mittelwert+3*Standardabweichung -> 22.43200975 | AO5: =Mittelwert -> 18.87980769 | AQ5: =IF(AND(C5<>"",C5<UGW),1,0) -> 0 | AR5: =IF(AND(C5<>"",C5>OGW),1,0) -> 0 | AV5: -6 | AW5: =Mittelwert+AV5*Standardabweichung -> 11.77540357 | AX5: 3 | AY5: =AX5*2 -> 6 | AZ5: =AW5 -> 11.77540357 | BC5: 1 | BD5: =IF(C5="",NA(),SMALL(xi,BE5)) -> 16.1 | BE5: =IF(C5="","",1) -> 1 | BF5: =IF(C5="","",NORMSDIST((BD5-Mittelwert)/Standardabweichung)) -> 0.009445447577 | BG5: =IF(C5="","",1-BF5) -> 0.9905545524 | BH5: =IF(C5="","",SMALL(BG,BE5)) -> 0.0134531538 | BI5: =IF(C5="","",(2*BE5-1)*(LN(BH5)+LN(BF5))) -> -8.970764109 | BJ5: =IF(C5="",NA(),NORMSINV((BE5-0.3)/(Anzahl+0.4))) -> -2.472692113 | BL5: =Standardabweichung*BM5+Mittelwert -> 22.43200975 | BM5: 3
B6: 2 | C6: =IF('input and diagram'!C6="","",'input and diagram'!C6) -> 21 | E6: 52 | F6: =IF('input and diagram'!F6="","",'input and diagram'!F6) -> 17.1 | H6: 102 | I6: =IF('input and diagram'!I6="","",'input and diagram'!I6) -> 19.5 | K6: 152 | L6: =IF('input and diagram'!L6="","",'input and diagram'!L6) ->  | O6: Merkmal: | P6: =Merkmal -> length | R6: Homepage: | AD6: 2 | AE6: 2 | AF6: =IF(C6<>"",C6,AG5) -> 21 | AG6: 23 | AH6: 16 | AI6: =AI5 -> 17.69574034 | AJ6: 20.06387505 | AK6: 16.51167299 | AL6: 21.2479424 | AM6: 15.32760563 | AN6: 22.43200975 | AO6: 18.87980769 | AQ6: 0 | AR6: 0 | AV6: -5 | AW6: 12.95947093 | AX6: 3 | AY6: =AX6*2 -> 6 | AZ6: =AZ5 -> 11.77540357 | BC6: 2 | BD6: 16.3 | BE6: =IF(C6="","",1+BE5) -> 2 | BF6: 0.01467446514 | BG6: 0.9853255349 | BH6: 0.03667866501 | BI6: -22.58161917 | BJ6: -2.137380578 | BL6: =Standardabweichung*BM6+Mittelwert -> 18.87980769 | BM6: 0
B7: 3 | C7: =IF('input and diagram'!C7="","",'input and diagram'!C7) -> 21.5 | E7: 53 | F7: =IF('input and diagram'!F7="","",'input and diagram'!F7) -> 18.6 | H7: 103 | I7: =IF('input and diagram'!I7="","",'input and diagram'!I7) -> 20.4 | K7: 153 | L7: =IF('input and diagram'!L7="","",'input and diagram'!L7) ->  | O7: Maßeinheit: | P7: =Maßeinheit -> mm | R7: www.sixsigmablackbelt.de | AD7: 3 | AE7: 3 | AF7: =IF(C7<>"",C7,AG6) -> 21.5 | AG7: 23 | AH7: 16 | AI7: 17.69574034 | AJ7: 20.06387505 | AK7: 16.51167299 | AL7: 21.2479424 | AM7: 15.32760563 | AN7: 22.43200975 | AO7: 18.87980769 | AQ7: 0 | AR7: 0 | AV7: -4 | AW7: 14.14353828 | AX7: 3 | AY7: 6 | AZ7: =AZ6 -> 11.77540357 | BC7: 3 | BD7: 16.4 | BE7: 3 | BF7: 0.01811605194 | BG7: 0.9818839481 | BH7: 0.04399040829 | BI7: -35.67370274 | BJ7: -1.945422591 | BL7: =Standardabweichung*BM7+Mittelwert -> 15.32760563 | BM7: -3
B8: 4 | C8: =IF('input and diagram'!C8="","",'input and diagram'!C8) -> 19 | E8: 54 | F8: =IF('input and diagram'!F8="","",'input and diagram'!F8) -> 18 | H8: 104 | I8: =IF('input and diagram'!I8="","",'input and diagram'!I8) -> 20 | K8: 154 | L8: =IF('input and diagram'!L8="","",'input and diagram'!L8) ->  | O8: Sollwert msoll = | P8: =Sollwert -> 19 | AD8: 4 | AE8: 4 | AF8: =IF(C8<>"",C8,AF7) -> 19 | AG8: 23 | AH8: 16 | AI8: 17.69574034 | AJ8: 20.06387505 | AK8: 16.51167299 | AL8: 21.2479424 | AM8: 15.32760563 | AN8: 22.43200975 | AO8: 18.87980769 | AQ8: 0 | AR8: 0 | AV8: -2 | AW8: 16.51167299 | AX8: 3 | AY8: 6 | AZ8: 11.77540357 | BC8: 4 | BD8: 16.6 | BE8: 4 | BF8: 0.02708943497 | BG8: 0.972910565 | BH8: 0.05243467858 | BI8: -45.89759007 | BJ8: -1.806237651
B9: 5 | C9: =IF('input and diagram'!C9="","",'input and diagram'!C9) -> 19 | E9: 55 | F9: =IF('input and diagram'!F9="","",'input and diagram'!F9) -> 18.7 | H9: 105 | I9: =IF('input and diagram'!I9="","",'input and diagram'!I9) ->  | K9: 155 | L9: =IF('input and diagram'!L9="","",'input and diagram'!L9) ->  | O9: Unterer Grenzwert UGW = | P9: =UGW -> 16 | R9: E-Mail an roland.schnurr@sixsigmablackbelt.de | AD9: 5 | AE9: 5 | AF9: 19 | AG9: 23 | AH9: 16 | AI9: 17.69574034 | AJ9: 20.06387505 | AK9: 16.51167299 | AL9: 21.2479424 | AM9: 15.32760563 | AN9: 22.43200975 | AO9: 18.87980769 | AQ9: 0 | AR9: 0 | AV9: -1 | AW9: 17.69574034 | AX9: 3 | AY9: 6 | AZ9: 11.77540357 | BC9: 5 | BD9: 16.8 | BE9: 5 | BF9: 0.03950201214 | BG9: 0.9604979879 | BH9: 0.0731420787 | BI9: -52.62079603 | BJ9: -1.695195638
B10: 6 | C10: =IF('input and diagram'!C10="","",'input and diagram'!C10) -> 20.4 | E10: 56 | F10: =IF('input and diagram'!F10="","",'input and diagram'!F10) -> 20.3 | H10: 106 | I10: =IF('input and diagram'!I10="","",'input and diagram'!I10) ->  | K10: 156 | L10: =IF('input and diagram'!L10="","",'input and diagram'!L10) ->  | O10: Oberer Grenzwert OGW = | P10: =OGW -> 23 | AD10: 6 | AE10: 6 | AF10: 20.4 | AG10: 23 | AH10: 16 | AI10: 17.69574034 | AJ10: 20.06387505 | AK10: 16.51167299 | AL10: 21.2479424 | AM10: 15.32760563 | AN10: 22.43200975 | AO10: 18.87980769 | AQ10: 0 | AR10: 0 | AV10: 1 | AW10: 20.06387505 | AX10: 3 | AY10: 6 | AZ10: 11.77540357 | BC10: 6 | BD10: 16.9 | BE10: 6 | BF10: 0.04725824106 | BG10: 0.9527417589 | BH10: 0.0731420787 | BI10: -62.34227639 | BJ10: -1.601820076 | BL10: Summe S | BM10: =SUM(Normalverteilung_S) -> -10859.81268
B11: 7 | C11: =IF('input and diagram'!C11="","",'input and diagram'!C11) -> 18.3 | E11: 57 | F11: =IF('input and diagram'!F11="","",'input and diagram'!F11) -> 18.7 | H11: 107 | I11: =IF('input and diagram'!I11="","",'input and diagram'!I11) ->  | K11: 157 | L11: =IF('input and diagram'!L11="","",'input and diagram'!L11) ->  | R11: Literatur: | AD11: 7 | AE11: 7 | AF11: 18.3 | AG11: 23 | AH11: 16 | AI11: 17.69574034 | AJ11: 20.06387505 | AK11: 16.51167299 | AL11: 21.2479424 | AM11: 15.32760563 | AN11: 22.43200975 | AO11: 18.87980769 | AQ11: 0 | AR11: 0 | AV11: 2 | AW11: 21.2479424 | AX11: 3 | AY11: 6 | AZ11: 11.77540357 | BC11: 7 | BD11: 16.9 | BE11: 7 | BF11: 0.04725824106 | BG11: 0.9527417589 | BH11: 0.08560474221 | BI11: -71.63185671 | BJ11: -1.52063089 | BL11: AD | BM11: =-BM10/Anzahl-Anzahl -> 0.4212757607
B12: 8 | C12: =IF('input and diagram'!C12="","",'input and diagram'!C12) -> 19.9 | E12: 58 | F12: =IF('input and diagram'!F12="","",'input and diagram'!F12) -> 18.8 | H12: 108 | I12: =IF('input and diagram'!I12="","",'input and diagram'!I12) ->  | K12: 158 | L12: =IF('input and diagram'!L12="","",'input and diagram'!L12) ->  | O12: Umfang der Stichprobe | P12: =COUNT(xi) -> 104 | R12: Statistik von Kopf bis Fuss | AD12: 8 | AE12: 8 | AF12: 19.9 | AG12: 23 | AH12: 16 | AI12: 17.69574034 | AJ12: 20.06387505 | AK12: 16.51167299 | AL12: 21.2479424 | AM12: 15.32760563 | AN12: 22.43200975 | AO12: 18.87980769 | AQ12: 0 | AR12: 0 | AV12: 4 | AW12: 23.6160771 | AX12: 3 | AY12: 6 | AZ12: 11.77540357 | BC12: 8 | BD12: 17.1 | BE12: 8 | BF12: 0.06640270411 | BG12: 0.9335972959 | BH12: 0.08560474221 | BI12: -77.55048145 | BJ12: -1.448384388 | BL12: AD* | BM12: =BM11*(1+0.75/Anzahl+2.25/Anzahl^2) -> 0.424401443
B13: 9 | C13: =IF('input and diagram'!C13="","",'input and diagram'!C13) -> 18.7 | E13: 59 | F13: =IF('input and diagram'!F13="","",'input and diagram'!F13) -> 19.4 | H13: 109 | I13: =IF('input and diagram'!I13="","",'input and diagram'!I13) ->  | K13: 159 | L13: =IF('input and diagram'!L13="","",'input and diagram'!L13) ->  | O13: Mittelwert m | P13: =IF(P37=P38,AVERAGE(xi),"Makro nicht aktiv") -> 18.87980769 | R13: SPC - Statistische Prozesskontrolle | AD13: 9 | AE13: 9 | AF13: 18.7 | AG13: 23 | AH13: 16 | AI13: 17.69574034 | AJ13: 20.06387505 | AK13: 16.51167299 | AL13: 21.2479424 | AM13: 15.32760563 | AN13: 22.43200975 | AO13: 18.87980769 | AQ13: 0 | AR13: 0 | AV13: 5 | AW13: 24.80014446 | AX13: 3 | AY13: 6 | AZ13: 11.77540357 | BC13: 9 | BD13: 17.1 | BE13: 9 | BF13: 0.06640270411 | BG13: 0.9335972959 | BH13: 0.08560474221 | BI13: -87.89054564 | BJ13: -1.382994127
B14: 10 | C14: =IF('input and diagram'!C14="","",'input and diagram'!C14) -> 18 | E14: 60 | F14: =IF('input and diagram'!F14="","",'input and diagram'!F14) -> 18.5 | H14: 110 | I14: =IF('input and diagram'!I14="","",'input and diagram'!I14) ->  | K14: 160 | L14: =IF('input and diagram'!L14="","",'input and diagram'!L14) ->  | O14: Standardabweichung s | P14: =IF(P37=P38,STDEV(xi),"Makro nicht aktiv") -> 1.184067353 | R14: Qualitätsmanagement für Ingenieure | AD14: 10 | AE14: 10 | AF14: 18 | AG14: 23 | AH14: 16 | AI14: 17.69574034 | AJ14: 20.06387505 | AK14: 16.51167299 | AL14: 21.2479424 | AM14: 15.32760563 | AN14: 22.43200975 | AO14: 18.87980769 | AQ14: 0 | AR14: 0 | AV14: 6 | AW14: 25.98421181 | AX14: 3 | AY14: 6 | AZ14: 11.77540357 | BC14: 10 | BD14: 17.1 | BE14: 10 | BF14: 0.06640270411 | BG14: 0.9335972959 | BH14: 0.09959316794 | BI14: -95.354905 | BJ14: -1.323034952
B15: 11 | C15: =IF('input and diagram'!C15="","",'input and diagram'!C15) -> 17.7 | E15: 61 | F15: =IF('input and diagram'!F15="","",'input and diagram'!F15) -> 18.6 | H15: 111 | I15: =IF('input and diagram'!I15="","",'input and diagram'!I15) ->  | K15: 161 | L15: =IF('input and diagram'!L15="","",'input and diagram'!L15) ->  | R15: SPC - Statistische Prozesskontrolle: Eine praktische Einführung in die statistische Prozesskontrolle | AD15: 11 | AE15: 11 | AF15: 17.7 | AG15: 23 | AH15: 16 | AI15: 17.69574034 | AJ15: 20.06387505 | AK15: 16.51167299 | AL15: 21.2479424 | AM15: 15.32760563 | AN15: 22.43200975 | AO15: 18.87980769 | AQ15: 0 | AR15: 0 | AV15: -3 | AW15: 15.32760563 | AX15: 3 | AY15: 6 | AZ15: 11.77540357 | BC15: 11 | BD15: 17.2 | BE15: 11 | BF15: 0.0779967787 | BG15: 0.9220032213 | BH15: 0.09959316794 | BI15: -102.0127387 | BJ15: -1.267488025 | BL15: p1 | BM15: =IF(AND(BM12<13, BM12>=0.6),EXP(1.2937-5.709*BM12+0.0186*BM12^ 2),0) -> 0
B16: 12 | C16: =IF('input and diagram'!C16="","",'input and diagram'!C16) -> 19.1 | E16: 62 | F16: =IF('input and diagram'!F16="","",'input and diagram'!F16) -> 19.6 | H16: 112 | I16: =IF('input and diagram'!I16="","",'input and diagram'!I16) ->  | K16: 162 | L16: =IF('input and diagram'!L16="","",'input and diagram'!L16) ->  | P16: Fähigkeitskennwerte | AD16: 12 | AE16: 12 | AF16: 19.1 | AG16: 23 | AH16: 16 | AI16: 17.69574034 | AJ16: 20.06387505 | AK16: 16.51167299 | AL16: 21.2479424 | AM16: 15.32760563 | AN16: 22.43200975 | AO16: 18.87980769 | AQ16: 0 | AR16: 0 | AV16: 3 | AW16: 22.43200975 | AX16: 3 | AY16: 6 | AZ16: 11.77540357 | BC16: 12 | BD16: 17.2 | BE16: 12 | BF16: 0.0779967787 | BG16: 0.9220032213 | BH16: 0.09959316794 | BI16: -111.7282377 | BJ16: -1.215598434 | BL16: p2 | BM16: =IF(AND(BM12<0.6,BM12>=0.34),EXP(0.9177-4.279*BM12-1.38*BM12^2),0) -> 0.3176279144
B17: 13 | C17: =IF('input and diagram'!C17="","",'input and diagram'!C17) -> 19.7 | E17: 63 | F17: =IF('input and diagram'!F17="","",'input and diagram'!F17) -> 18.5 | H17: 113 | I17: =IF('input and diagram'!I17="","",'input and diagram'!I17) ->  | K17: 163 | L17: =IF('input and diagram'!L17="","",'input and diagram'!L17) ->  | O17: Cpu | P17: =(Mittelwert-UGW)/(3*Standardabweichung) -> 0.810710552 | AD17: 13 | AE17: 13 | AF17: 19.7 | AG17: 23 | AH17: 16 | AI17: 17.69574034 | AJ17: 20.06387505 | AK17: 16.51167299 | AL17: 21.2479424 | AM17: 15.32760563 | AN17: 22.43200975 | AO17: 18.87980769 | AQ17: 0 | AR17: 0 | BC17: 13 | BD17: 17.3 | BE17: 13 | BF17: 0.09106569684 | BG17: 0.9089343032 | BH17: 0.09959316794 | BI17: -117.570895 | BJ17: -1.166790414 | BL17: p3 | BM17: =IF(AND(BM12<0.34,BM12>=0.2),1-EXP(-8.318+42.796*BM12-59.938*BM12^2),0) -> 0
B18: 14 | C18: =IF('input and diagram'!C18="","",'input and diagram'!C18) -> 18.1 | E18: 64 | F18: =IF('input and diagram'!F18="","",'input and diagram'!F18) -> 20 | H18: 114 | I18: =IF('input and diagram'!I18="","",'input and diagram'!I18) ->  | K18: 164 | L18: =IF('input and diagram'!L18="","",'input and diagram'!L18) ->  | O18: Cpo | P18: =(OGW-Mittelwert)/(3*Standardabweichung) -> 1.159898069 | AD18: 14 | AE18: 14 | AF18: 18.1 | AG18: 23 | AH18: 16 | AI18: 17.69574034 | AJ18: 20.06387505 | AK18: 16.51167299 | AL18: 21.2479424 | AM18: 15.32760563 | AN18: 22.43200975 | AO18: 18.87980769 | AQ18: 0 | AR18: 0 | AV18: Mittelwert | AW18: =Mittelwert -> 18.87980769 | AX18: 3 | BC18: 14 | BD18: 17.3 | BE18: 14 | BF18: 0.09106569684 | BG18: 0.9089343032 | BH18: 0.1151826257 | BI18: -123.0500822 | BJ18: -1.120614225 | BL18: p4 | BM18: =IF(BM12<0.2,1-EXP(-13.436+101.14*BM12-223.73*BM12^2),0) -> 0
B19: 15 | C19: =IF('input and diagram'!C19="","",'input and diagram'!C19) -> 18.4 | E19: 65 | F19: =IF('input and diagram'!F19="","",'input and diagram'!F19) -> 17.8 | H19: 115 | I19: =IF('input and diagram'!I19="","",'input and diagram'!I19) ->  | K19: 165 | L19: =IF('input and diagram'!L19="","",'input and diagram'!L19) ->  | O19: Cp | P19: =(OGW-UGW)/(6*Standardabweichung) -> 0.9853043103 | AD19: 15 | AE19: 15 | AF19: 18.4 | AG19: 23 | AH19: 16 | AI19: 17.69574034 | AJ19: 20.06387505 | AK19: 16.51167299 | AL19: 21.2479424 | AM19: 15.32760563 | AN19: 22.43200975 | AO19: 18.87980769 | AQ19: 0 | AR19: 0 | AV19: OGW | AW19: =OGW -> 23 | AX19: 3 | BC19: 15 | BD19: 17.3 | BE19: 15 | BF19: 0.09106569684 | BG19: 0.9089343032 | BH19: 0.1324329543 | BI19: -128.1177328 | BJ19: -1.07671145
B20: 16 | C20: =IF('input and diagram'!C20="","",'input and diagram'!C20) -> 17.5 | E20: 66 | F20: =IF('input and diagram'!F20="","",'input and diagram'!F20) -> 19.8 | H20: 116 | I20: =IF('input and diagram'!I20="","",'input and diagram'!I20) ->  | K20: 166 | L20: =IF('input and diagram'!L20="","",'input and diagram'!L20) ->  | O20: Cpk | P20: =MIN(CPO,CPU) -> 0.810710552 | AD20: 16 | AE20: 16 | AF20: 17.5 | AG20: 23 | AH20: 16 | AI20: 17.69574034 | AJ20: 20.06387505 | AK20: 16.51167299 | AL20: 21.2479424 | AM20: 15.32760563 | AN20: 22.43200975 | AO20: 18.87980769 | AQ20: 0 | AR20: 0 | AV20: UGW | AW20: =UGW -> 16 | AX20: 3 | BC20: 16 | BD20: 17.5 | BE20: 16 | BF20: 0.1219463964 | BG20: 0.8780536036 | BH20: 0.1513855165 | BI20: -123.7550786 | BJ20: -1.034791521 | BL20: p Wert | BM20: =MAX(BM15:BM18) -> 0.3176279144
B21: 17 | C21: =IF('input and diagram'!C21="","",'input and diagram'!C21) -> 18.9 | E21: 67 | F21: =IF('input and diagram'!F21="","",'input and diagram'!F21) -> 16.6 | H21: 117 | I21: =IF('input and diagram'!I21="","",'input and diagram'!I21) ->  | K21: 167 | L21: =IF('input and diagram'!L21="","",'input and diagram'!L21) ->  | AD21: 17 | AE21: 17 | AF21: 18.9 | AG21: 23 | AH21: 16 | AI21: 17.69574034 | AJ21: 20.06387505 | AK21: 16.51167299 | AL21: 21.2479424 | AM21: 15.32760563 | AN21: 22.43200975 | AO21: 18.87980769 | AQ21: 0 | AR21: 0 | AV21: Sollwert | AW21: =Sollwert -> 19 | AX21: 3 | BC21: 17 | BD21: 17.5 | BE21: 17 | BF21: 0.1219463964 | BG21: 0.8780536036 | BH21: 0.1513855165 | BI21: -131.7392773 | BJ21: -0.994615365
B22: 18 | C22: =IF('input and diagram'!C22="","",'input and diagram'!C22) -> 19 | E22: 68 | F22: =IF('input and diagram'!F22="","",'input and diagram'!F22) -> 19.4 | H22: 118 | I22: =IF('input and diagram'!I22="","",'input and diagram'!I22) ->  | K22: 168 | L22: =IF('input and diagram'!L22="","",'input and diagram'!L22) ->  | O22: Median z | P22: =MEDIAN(xi) -> 18.9 | AD22: 18 | AE22: 18 | AF22: 19 | AG22: 23 | AH22: 16 | AI22: =AI21 -> 17.69574034 | AJ22: 20.06387505 | AK22: 16.51167299 | AL22: 21.2479424 | AM22: 15.32760563 | AN22: 22.43200975 | AO22: 18.87980769 | AQ22: 0 | AR22: 0 | BC22: 18 | BD22: 17.6 | BE22: 18 | BF22: 0.1398803258 | BG22: 0.8601196742 | BH22: 0.1720603817 | BI22: -130.4407246 | BJ22: -0.9559837196
B23: 19 | C23: =IF('input and diagram'!C23="","",'input and diagram'!C23) -> 20.5 | E23: 69 | F23: =IF('input and diagram'!F23="","",'input and diagram'!F23) -> 19.3 | H23: 119 | I23: =IF('input and diagram'!I23="","",'input and diagram'!I23) ->  | K23: 169 | L23: =IF('input and diagram'!L23="","",'input and diagram'!L23) ->  | O23: Spannweite R | P23: =Maximum-Minimum -> 5.4 | AD23: 19 | AE23: 19 | AF23: 20.5 | AG23: 23 | AH23: 16 | AI23: 17.69574034 | AJ23: 20.06387505 | AK23: 16.51167299 | AL23: 21.2479424 | AM23: 15.32760563 | AN23: 22.43200975 | AO23: 18.87980769 | AQ23: 0 | AR23: 0 | BC23: 19 | BD23: 17.7 | BE23: 19 | BF23: 0.159527305 | BG23: 0.840472695 | BH23: 0.1720603817 | BI23: -133.0316495 | BJ23: -0.9187285975
B24: 20 | C24: =IF('input and diagram'!C24="","",'input and diagram'!C24) -> 17.3 | E24: 70 | F24: =IF('input and diagram'!F24="","",'input and diagram'!F24) -> 20.1 | H24: 120 | I24: =IF('input and diagram'!I24="","",'input and diagram'!I24) ->  | K24: 170 | L24: =IF('input and diagram'!L24="","",'input and diagram'!L24) ->  | O24: Minimum | P24: =MIN(xi) -> 16.1 | AD24: 20 | AE24: 20 | AF24: 17.3 | AG24: 23 | AH24: 16 | AI24: 17.69574034 | AJ24: 20.06387505 | AK24: 16.51167299 | AL24: 21.2479424 | AM24: 15.32760563 | AN24: 22.43200975 | AO24: 18.87980769 | AQ24: 0 | AR24: 0 | BC24: 20 | BD24: 17.7 | BE24: 20 | BF24: 0.159527305 | BG24: 0.840472695 | BH24: 0.1720603817 | BI24: -140.2225495 | BJ24: -0.8827069317
B25: 21 | C25: =IF('input and diagram'!C25="","",'input and diagram'!C25) -> 18.3 | E25: 71 | F25: =IF('input and diagram'!F25="","",'input and diagram'!F25) -> 20.5 | H25: 121 | I25: =IF('input and diagram'!I25="","",'input and diagram'!I25) ->  | K25: 171 | L25: =IF('input and diagram'!L25="","",'input and diagram'!L25) ->  | O25: Maximum | P25: =MAX(xi) -> 21.5 | AD25: 21 | AE25: 21 | AF25: 18.3 | AG25: 23 | AH25: 16 | AI25: 17.69574034 | AJ25: 20.06387505 | AK25: 16.51167299 | AL25: 21.2479424 | AM25: 15.32760563 | AN25: 22.43200975 | AO25: 18.87980769 | AQ25: 0 | AR25: 0 | BC25: 21 | BD25: 17.8 | BE25: 21 | BF25: 0.180898082 | BG25: 0.819101918 | BH25: 0.1720603817 | BI25: -142.2589832 | BJ25: -0.8477957612
B26: 22 | C26: =IF('input and diagram'!C26="","",'input and diagram'!C26) -> 18.4 | E26: 72 | F26: =IF('input and diagram'!F26="","",'input and diagram'!F26) -> 20 | H26: 122 | I26: =IF('input and diagram'!I26="","",'input and diagram'!I26) ->  | K26: 172 | L26: =IF('input and diagram'!L26="","",'input and diagram'!L26) ->  | AD26: 22 | AE26: 22 | AF26: 18.4 | AG26: 23 | AH26: 16 | AI26: 17.69574034 | AJ26: 20.06387505 | AK26: 16.51167299 | AL26: 21.2479424 | AM26: 15.32760563 | AN26: 22.43200975 | AO26: 18.87980769 | AQ26: 0 | AR26: 0 | BC26: 22 | BD26: 17.9 | BE26: 22 | BF26: 0.2039787851 | BG26: 0.7960212149 | BH26: 0.1720603817 | BI26: -144.034911 | BJ26: -0.8138885298
B27: 23 | C27: =IF('input and diagram'!C27="","",'input and diagram'!C27) -> 18.6 | E27: 73 | F27: =IF('input and diagram'!F27="","",'input and diagram'!F27) -> 20.8 | H27: 123 | I27: =IF('input and diagram'!I27="","",'input and diagram'!I27) ->  | K27: 173 | L27: =IF('input and diagram'!L27="","",'input and diagram'!L27) ->  | P27: Berechnete Leistung in ppm | AD27: 23 | AE27: 23 | AF27: 18.6 | AG27: 23 | AH27: 16 | AI27: 17.69574034 | AJ27: 20.06387505 | AK27: 16.51167299 | AL27: 21.2479424 | AM27: 15.32760563 | AN27: 22.43200975 | AO27: 18.87980769 | AQ27: 0 | AR27: 0 | BC27: 23 | BD27: 18 | BE27: 23 | BF27: 0.2287291699 | BG27: 0.7712708301 | BH27: 0.1944538643 | BI27: -140.0749643 | BJ27: -0.7808921994
B28: 24 | C28: =IF('input and diagram'!C28="","",'input and diagram'!C28) -> 19.8 | E28: 74 | F28: =IF('input and diagram'!F28="","",'input and diagram'!F28) -> 17.7 | H28: 124 | I28: =IF('input and diagram'!I28="","",'input and diagram'!I28) ->  | K28: 174 | L28: =IF('input and diagram'!L28="","",'input and diagram'!L28) ->  | O28: Überschreitungsanteil pUGW | P28: =NORMDIST(UGW,Mittelwert,Standardabweichung,1)*1000000 -> 7505.125075 | AD28: 24 | AE28: 24 | AF28: 19.8 | AG28: 23 | AH28: 16 | AI28: 17.69574034 | AJ28: 20.06387505 | AK28: 16.51167299 | AL28: 21.2479424 | AM28: 15.32760563 | AN28: 22.43200975 | AO28: 18.87980769 | AQ28: 0 | AR28: 0 | BC28: 24 | BD28: 18 | BE28: 24 | BF28: 0.2287291699 | BG28: 0.7712708301 | BH28: 0.1944538643 | BI28: -146.3005183 | BJ28: -0.7487249731
B29: 25 | C29: =IF('input and diagram'!C29="","",'input and diagram'!C29) -> 20.2 | E29: 75 | F29: =IF('input and diagram'!F29="","",'input and diagram'!F29) -> 18.9 | H29: 125 | I29: =IF('input and diagram'!I29="","",'input and diagram'!I29) ->  | K29: 175 | L29: =IF('input and diagram'!L29="","",'input and diagram'!L29) ->  | O29: Überschreitungsanteil pOGW | P29: =(1-NORMDIST(OGW,Mittelwert,Standardabweichung,1))*1000000 -> 250.9931974 | AD29: 25 | AE29: 25 | AF29: 20.2 | AG29: 23 | AH29: 16 | AI29: 17.69574034 | AJ29: 20.06387505 | AK29: 16.51167299 | AL29: 21.2479424 | AM29: 15.32760563 | AN29: 22.43200975 | AO29: 18.87980769 | AQ29: 0 | AR29: 0 | BC29: 25 | BD29: 18 | BE29: 25 | BF29: 0.2287291699 | BG29: 0.7712708301 | BH29: 0.1944538643 | BI29: -152.5260723 | BJ29: -0.7173144767
B30: 26 | C30: =IF('input and diagram'!C30="","",'input and diagram'!C30) -> 18.5 | E30: 76 | F30: =IF('input and diagram'!F30="","",'input and diagram'!F30) -> 18.8 | H30: 126 | I30: =IF('input and diagram'!I30="","",'input and diagram'!I30) ->  | K30: 176 | L30: =IF('input and diagram'!L30="","",'input and diagram'!L30) ->  | O30: Überschreitungsanteil p | P30: =BERPOGW+BERPUGW -> 7756.118273 | AD30: 26 | AE30: 26 | AF30: 18.5 | AG30: 23 | AH30: 16 | AI30: 17.69574034 | AJ30: 20.06387505 | AK30: 16.51167299 | AL30: 21.2479424 | AM30: 15.32760563 | AN30: 22.43200975 | AO30: 18.87980769 | AQ30: 0 | AR30: 0 | BC30: 26 | BD30: 18.1 | BE30: 26 | BF30: 0.255081503 | BG30: 0.744918497 | BH30: 0.2185365427 | BI30: -147.2356842 | BJ30: -0.6865962936
B31: 27 | C31: =IF('input and diagram'!C31="","",'input and diagram'!C31) -> 18.5 | E31: 77 | F31: =IF('input and diagram'!F31="","",'input and diagram'!F31) -> 16.4 | H31: 127 | I31: =IF('input and diagram'!I31="","",'input and diagram'!I31) ->  | K31: 177 | L31: =IF('input and diagram'!L31="","",'input and diagram'!L31) ->  | AD31: 27 | AE31: 27 | AF31: 18.5 | AG31: 23 | AH31: 16 | AI31: 17.69574034 | AJ31: 20.06387505 | AK31: 16.51167299 | AL31: 21.2479424 | AM31: 15.32760563 | AN31: 22.43200975 | AO31: 18.87980769 | AQ31: 0 | AR31: 0 | BC31: 27 | BD31: 18.1 | BE31: 27 | BF31: 0.255081503 | BG31: 0.744918497 | BH31: 0.2185365427 | BI31: -153.0096326 | BJ31: -0.6565127715
B32: 28 | C32: =IF('input and diagram'!C32="","",'input and diagram'!C32) -> 18 | E32: 78 | F32: =IF('input and diagram'!F32="","",'input and diagram'!F32) -> 18.5 | H32: 128 | I32: =IF('input and diagram'!I32="","",'input and diagram'!I32) ->  | K32: 178 | L32: =IF('input and diagram'!L32="","",'input and diagram'!L32) ->  | P32: Beobachtete Leistung in ppm | AD32: 28 | AE32: 28 | AF32: 18 | AG32: 23 | AH32: 16 | AI32: 17.69574034 | AJ32: 20.06387505 | AK32: 16.51167299 | AL32: 21.2479424 | AM32: 15.32760563 | AN32: 22.43200975 | AO32: 18.87980769 | AQ32: 0 | AR32: 0 | BC32: 28 | BD32: 18.1 | BE32: 28 | BF32: 0.255081503 | BG32: 0.744918497 | BH32: 0.2442518744 | BI32: -152.6650114 | BJ32: -0.627012043
B33: 29 | C33: =IF('input and diagram'!C33="","",'input and diagram'!C33) -> 20.9 | E33: 79 | F33: =IF('input and diagram'!F33="","",'input and diagram'!F33) -> 19 | H33: 129 | I33: =IF('input and diagram'!I33="","",'input and diagram'!I33) ->  | K33: 179 | L33: =IF('input and diagram'!L33="","",'input and diagram'!L33) ->  | O33: Überschreitungsanteil pUGW | P33: =AQ205/P12*1000000 -> 0 | AD33: 29 | AE33: 29 | AF33: 20.9 | AG33: 23 | AH33: 16 | AI33: 17.69574034 | AJ33: 20.06387505 | AK33: 16.51167299 | AL33: 21.2479424 | AM33: 15.32760563 | AN33: 22.43200975 | AO33: 18.87980769 | AQ33: 0 | AR33: 0 | BC33: 29 | BD33: 18.3 | BE33: 29 | BF33: 0.3121820937 | BG33: 0.6878179063 | BH33: 0.2442518744 | BI33: -146.7022647 | BJ33: -0.5980472154
B34: 30 | C34: =IF('input and diagram'!C34="","",'input and diagram'!C34) -> 18.1 | E34: 80 | F34: =IF('input and diagram'!F34="","",'input and diagram'!F34) -> 20.6 | H34: 130 | I34: =IF('input and diagram'!I34="","",'input and diagram'!I34) ->  | K34: 180 | L34: =IF('input and diagram'!L34="","",'input and diagram'!L34) ->  | O34: Überschreitungsanteil pOGW | P34: =AR205/P12*1000000 -> 0 | AD34: 30 | AE34: 30 | AF34: 18.1 | AG34: 23 | AH34: 16 | AI34: 17.69574034 | AJ34: 20.06387505 | AK34: 16.51167299 | AL34: 21.2479424 | AM34: 15.32760563 | AN34: 22.43200975 | AO34: 18.87980769 | AQ34: 0 | AR34: 0 | BC34: 30 | BD34: 18.3 | BE34: 30 | BF34: 0.3121820937 | BG34: 0.6878179063 | BH34: 0.2442518744 | BI34: -151.8497126 | BJ34: -0.5695756949
B35: 31 | C35: =IF('input and diagram'!C35="","",'input and diagram'!C35) -> 19.4 | E35: 81 | F35: =IF('input and diagram'!F35="","",'input and diagram'!F35) -> 19.2 | H35: 131 | I35: =IF('input and diagram'!I35="","",'input and diagram'!I35) ->  | K35: 181 | L35: =IF('input and diagram'!L35="","",'input and diagram'!L35) ->  | O35: Überschreitungsanteil p | P35: =P34+P33 -> 0 | AD35: 31 | AE35: 31 | AF35: 19.4 | AG35: 23 | AH35: 16 | AI35: 17.69574034 | AJ35: 20.06387505 | AK35: 16.51167299 | AL35: 21.2479424 | AM35: 15.32760563 | AN35: 22.43200975 | AO35: 18.87980769 | AQ35: 0 | AR35: 0 | BC35: 31 | BD35: 18.3 | BE35: 31 | BF35: 0.3121820937 | BG35: 0.6878179063 | BH35: 0.2715155038 | BI35: -150.5421845 | BJ35: -0.5415586189
B36: 32 | C36: =IF('input and diagram'!C36="","",'input and diagram'!C36) -> 20.5 | E36: 82 | F36: =IF('input and diagram'!F36="","",'input and diagram'!F36) -> 17.1 | H36: 132 | I36: =IF('input and diagram'!I36="","",'input and diagram'!I36) ->  | K36: 182 | L36: =IF('input and diagram'!L36="","",'input and diagram'!L36) ->  | AD36: 32 | AE36: 32 | AF36: 20.5 | AG36: 23 | AH36: 16 | AI36: 17.69574034 | AJ36: 20.06387505 | AK36: 16.51167299 | AL36: 21.2479424 | AM36: 15.32760563 | AN36: 22.43200975 | AO36: 18.87980769 | AQ36: 0 | AR36: 0 | BC36: 32 | BD36: 18.4 | BE36: 32 | BF36: 0.3426579275 | BG36: 0.6573420725 | BH36: 0.2715155038 | BI36: -149.6097957 | BJ36: -0.5139603769
B37: 33 | C37: =IF('input and diagram'!C37="","",'input and diagram'!C37) -> 20.4 | E37: 83 | F37: =IF('input and diagram'!F37="","",'input and diagram'!F37) -> 16.3 | H37: 133 | I37: =IF('input and diagram'!I37="","",'input and diagram'!I37) ->  | K37: 183 | L37: =IF('input and diagram'!L37="","",'input and diagram'!L37) ->  | O37: Makro Date | P37: 2017-07-16 | AD37: 33 | AE37: =IF((Anzahl>AD37),AD37,Anzahl) -> 33 | AF37: 20.4 | AG37: =IF(C37<>"",OGW,AG36) -> 23 | AH37: =IF(C37<>"",UGW,AH36) -> 16 | AI37: 17.69574034 | AJ37: 20.06387505 | AK37: 16.51167299 | AL37: 21.2479424 | AM37: 15.32760563 | AN37: 22.43200975 | AO37: 18.87980769 | AQ37: =IF(AND(C37<>"",C37<UGW),1,0) -> 0 | AR37: =IF(AND(C37<>"",C37>OGW),1,0) -> 0 | BC37: 33 | BD37: =IF(C37="",NA(),SMALL(xi,BE37)) -> 18.4 | BE37: 33 | BF37: =IF(C37="","",NORMSDIST((BD37-Mittelwert)/Standardabweichung)) -> 0.3426579275 | BG37: =IF(C37="","",1-BF37) -> 0.6573420725 | BH37: =IF(C37="","",SMALL(BG,BE37)) -> 0.2715155038 | BI37: =IF(C37="","",(2*BE37-1)*(LN(BH37)+LN(BF37))) -> -154.359313 | BJ37: =IF(C37="",NA(),NORMSINV((BE37-0.3)/(Anzahl+0.4))) -> -0.4867482021
B38: 34 | C38: =IF('input and diagram'!C38="","",'input and diagram'!C38) -> 16.1 | E38: 84 | F38: =IF('input and diagram'!F38="","",'input and diagram'!F38) -> 17.2 | H38: 134 | I38: =IF('input and diagram'!I38="","",'input and diagram'!I38) ->  | K38: 184 | L38: =IF('input and diagram'!L38="","",'input and diagram'!L38) ->  | O38: Aktuelles Datum | P38: =TODAY() -> 2017-07-16 | AD38: 34 | AE38: 34 | AF38: 16.1 | AG38: 23 | AH38: 16 | AI38: =AI37 -> 17.69574034 | AJ38: 20.06387505 | AK38: 16.51167299 | AL38: 21.2479424 | AM38: 15.32760563 | AN38: 22.43200975 | AO38: 18.87980769 | AQ38: 0 | AR38: 0 | BC38: 34 | BD38: 18.4 | BE38: =IF(C38="","",1+BE37) -> 34 | BF38: 0.3426579275 | BG38: 0.6573420725 | BH38: 0.3002153394 | BI38: -152.3766186 | BJ38: -0.4598918231
B39: 35 | C39: =IF('input and diagram'!C39="","",'input and diagram'!C39) -> 18.7 | E39: 85 | F39: =IF('input and diagram'!F39="","",'input and diagram'!F39) -> 17.9 | H39: 135 | I39: =IF('input and diagram'!I39="","",'input and diagram'!I39) ->  | K39: 185 | L39: =IF('input and diagram'!L39="","",'input and diagram'!L39) ->  | AD39: 35 | AE39: 35 | AF39: 18.7 | AG39: 23 | AH39: 16 | AI39: 17.69574034 | AJ39: 20.06387505 | AK39: 16.51167299 | AL39: 21.2479424 | AM39: 15.32760563 | AN39: 22.43200975 | AO39: 18.87980769 | AQ39: 0 | AR39: 0 | BC39: 35 | BD39: 18.5 | BE39: 35 | BF39: 0.3741941375 | BG39: 0.6258058625 | BH39: 0.3002153394 | BI39: -150.8502699 | BJ39: -0.4333631628
B40: 36 | C40: =IF('input and diagram'!C40="","",'input and diagram'!C40) -> 18.8 | E40: 86 | F40: =IF('input and diagram'!F40="","",'input and diagram'!F40) -> 19.1 | H40: 136 | I40: =IF('input and diagram'!I40="","",'input and diagram'!I40) ->  | K40: 186 | L40: =IF('input and diagram'!L40="","",'input and diagram'!L40) ->  | AD40: 36 | AE40: 36 | AF40: 18.8 | AG40: 23 | AH40: 16 | AI40: 17.69574034 | AJ40: 20.06387505 | AK40: 16.51167299 | AL40: 21.2479424 | AM40: 15.32760563 | AN40: 22.43200975 | AO40: 18.87980769 | AQ40: 0 | AR40: 0 | BC40: 36 | BD40: 18.5 | BE40: 36 | BF40: 0.3741941375 | BG40: 0.6258058625 | BH40: 0.3002153394 | BI40: -155.2227415 | BJ40: -0.407136079
B41: 37 | C41: =IF('input and diagram'!C41="","",'input and diagram'!C41) -> 17.3 | E41: 87 | F41: =IF('input and diagram'!F41="","",'input and diagram'!F41) -> 17.3 | H41: 137 | I41: =IF('input and diagram'!I41="","",'input and diagram'!I41) ->  | K41: 187 | L41: =IF('input and diagram'!L41="","",'input and diagram'!L41) ->  | AD41: 37 | AE41: 37 | AF41: 17.3 | AG41: 23 | AH41: 16 | AI41: 17.69574034 | AJ41: 20.06387505 | AK41: 16.51167299 | AL41: 21.2479424 | AM41: 15.32760563 | AN41: 22.43200975 | AO41: 18.87980769 | AQ41: 0 | AR41: 0 | BC41: 37 | BD41: 18.5 | BE41: 37 | BF41: 0.3741941375 | BG41: 0.6258058625 | BH41: 0.3302124443 | BI41: -152.6429703 | BJ41: -0.3811861383
B42: 38 | C42: =IF('input and diagram'!C42="","",'input and diagram'!C42) -> 18.1 | E42: 88 | F42: =IF('input and diagram'!F42="","",'input and diagram'!F42) -> 19.4 | H42: 138 | I42: =IF('input and diagram'!I42="","",'input and diagram'!I42) ->  | K42: 188 | L42: =IF('input and diagram'!L42="","",'input and diagram'!L42) ->  | AD42: 38 | AE42: 38 | AF42: 18.1 | AG42: 23 | AH42: 16 | AI42: 17.69574034 | AJ42: 20.06387505 | AK42: 16.51167299 | AL42: 21.2479424 | AM42: 15.32760563 | AN42: 22.43200975 | AO42: 18.87980769 | AQ42: 0 | AR42: 0 | BC42: 38 | BD42: 18.5 | BE42: 38 | BF42: 0.3741941375 | BG42: 0.6258058625 | BH42: 0.3302124443 | BI42: -156.8249695 | BJ42: -0.3554904178
B43: 39 | C43: =IF('input and diagram'!C43="","",'input and diagram'!C43) -> 19.9 | E43: 89 | F43: =IF('input and diagram'!F43="","",'input and diagram'!F43) -> 18.3 | H43: 139 | I43: =IF('input and diagram'!I43="","",'input and diagram'!I43) ->  | K43: 189 | L43: =IF('input and diagram'!L43="","",'input and diagram'!L43) ->  | AD43: 39 | AE43: 39 | AF43: 19.9 | AG43: 23 | AH43: 16 | AI43: 17.69574034 | AJ43: 20.06387505 | AK43: 16.51167299 | AL43: 21.2479424 | AM43: 15.32760563 | AN43: 22.43200975 | AO43: 18.87980769 | AQ43: 0 | AR43: 0 | BC43: 39 | BD43: 18.5 | BE43: 39 | BF43: 0.3741941375 | BG43: 0.6258058625 | BH43: 0.3302124443 | BI43: -161.0069687 | BJ43: -0.3300273317
B44: 40 | C44: =IF('input and diagram'!C44="","",'input and diagram'!C44) -> 19.6 | E44: 90 | F44: =IF('input and diagram'!F44="","",'input and diagram'!F44) -> 19.3 | H44: 140 | I44: =IF('input and diagram'!I44="","",'input and diagram'!I44) ->  | K44: 190 | L44: =IF('input and diagram'!L44="","",'input and diagram'!L44) ->  | AD44: 40 | AE44: 40 | AF44: 19.6 | AG44: 23 | AH44: 16 | AI44: 17.69574034 | AJ44: 20.06387505 | AK44: 16.51167299 | AL44: 21.2479424 | AM44: 15.32760563 | AN44: 22.43200975 | AO44: 18.87980769 | AQ44: 0 | AR44: 0 | BC44: 40 | BD44: 18.6 | BE44: 40 | BF44: 0.4065958227 | BG44: 0.5934041773 | BH44: 0.3302124443 | BI44: -158.6284223 | BJ44: -0.3047764768
B45: 41 | C45: =IF('input and diagram'!C45="","",'input and diagram'!C45) -> 18.4 | E45: 91 | F45: =IF('input and diagram'!F45="","",'input and diagram'!F45) -> 17.2 | H45: 141 | I45: =IF('input and diagram'!I45="","",'input and diagram'!I45) ->  | K45: 191 | L45: =IF('input and diagram'!L45="","",'input and diagram'!L45) ->  | AD45: 41 | AE45: 41 | AF45: 18.4 | AG45: 23 | AH45: 16 | AI45: 17.69574034 | AJ45: 20.06387505 | AK45: 16.51167299 | AL45: 21.2479424 | AM45: 15.32760563 | AN45: 22.43200975 | AO45: 18.87980769 | AQ45: 0 | AR45: 0 | BC45: 41 | BD45: 18.6 | BE45: 41 | BF45: 0.4065958227 | BG45: 0.5934041773 | BH45: 0.3613427562 | BI45: -155.3469807 | BJ45: -0.2797184963
B46: 42 | C46: =IF('input and diagram'!C46="","",'input and diagram'!C46) -> 19.5 | E46: 92 | F46: =IF('input and diagram'!F46="","",'input and diagram'!F46) -> 17.5 | H46: 142 | I46: =IF('input and diagram'!I46="","",'input and diagram'!I46) ->  | K46: 192 | L46: =IF('input and diagram'!L46="","",'input and diagram'!L46) ->  | AD46: 42 | AE46: 42 | AF46: 19.5 | AG46: 23 | AH46: 16 | AI46: 17.69574034 | AJ46: 20.06387505 | AK46: 16.51167299 | AL46: 21.2479424 | AM46: 15.32760563 | AN46: 22.43200975 | AO46: 18.87980769 | AQ46: 0 | AR46: 0 | BC46: 42 | BD46: 18.6 | BE46: 42 | BF46: 0.4065958227 | BG46: 0.5934041773 | BH46: 0.3613427562 | BI46: -159.1827086 | BJ46: -0.2548349569
B47: 43 | C47: =IF('input and diagram'!C47="","",'input and diagram'!C47) -> 16.8 | E47: 93 | F47: =IF('input and diagram'!F47="","",'input and diagram'!F47) -> 19.6 | H47: 143 | I47: =IF('input and diagram'!I47="","",'input and diagram'!I47) ->  | K47: 193 | L47: =IF('input and diagram'!L47="","",'input and diagram'!L47) ->  | AD47: 43 | AE47: 43 | AF47: 16.8 | AG47: 23 | AH47: 16 | AI47: 17.69574034 | AJ47: 20.06387505 | AK47: 16.51167299 | AL47: 21.2479424 | AM47: 15.32760563 | AN47: 22.43200975 | AO47: 18.87980769 | AQ47: 0 | AR47: 0 | BC47: 43 | BD47: 18.7 | BE47: 43 | BF47: 0.4396502695 | BG47: 0.5603497305 | BH47: 0.3934196125 | BI47: -149.1456096 | BJ47: -0.230108239
B48: 44 | C48: =IF('input and diagram'!C48="","",'input and diagram'!C48) -> 17.1 | E48: 94 | F48: =IF('input and diagram'!F48="","",'input and diagram'!F48) -> 17.6 | H48: 144 | I48: =IF('input and diagram'!I48="","",'input and diagram'!I48) ->  | K48: 194 | L48: =IF('input and diagram'!L48="","",'input and diagram'!L48) ->  | AD48: 44 | AE48: 44 | AF48: 17.1 | AG48: 23 | AH48: 16 | AI48: 17.69574034 | AJ48: 20.06387505 | AK48: 16.51167299 | AL48: 21.2479424 | AM48: 15.32760563 | AN48: 22.43200975 | AO48: 18.87980769 | AQ48: 0 | AR48: 0 | BC48: 44 | BD48: 18.7 | BE48: 44 | BF48: 0.4396502695 | BG48: 0.5603497305 | BH48: 0.3934196125 | BI48: -152.6549181 | BJ48: -0.2055214374
B49: 45 | C49: =IF('input and diagram'!C49="","",'input and diagram'!C49) -> 18.9 | E49: 95 | F49: =IF('input and diagram'!F49="","",'input and diagram'!F49) -> 20 | H49: 145 | I49: =IF('input and diagram'!I49="","",'input and diagram'!I49) ->  | K49: 195 | L49: =IF('input and diagram'!L49="","",'input and diagram'!L49) ->  | AD49: 45 | AE49: 45 | AF49: 18.9 | AG49: 23 | AH49: 16 | AI49: 17.69574034 | AJ49: 20.06387505 | AK49: 16.51167299 | AL49: 21.2479424 | AM49: 15.32760563 | AN49: 22.43200975 | AO49: 18.87980769 | AQ49: 0 | AR49: 0 | BC49: 45 | BD49: 18.7 | BE49: 45 | BF49: 0.4396502695 | BG49: 0.5603497305 | BH49: 0.426237024 | BI49: -149.0336509 | BJ49: -0.1810582698
B50: 46 | C50: =IF('input and diagram'!C50="","",'input and diagram'!C50) -> 19.7 | E50: 96 | F50: =IF('input and diagram'!F50="","",'input and diagram'!F50) -> 19.9 | H50: 146 | I50: =IF('input and diagram'!I50="","",'input and diagram'!I50) ->  | K50: 196 | L50: =IF('input and diagram'!L50="","",'input and diagram'!L50) ->  | AD50: 46 | AE50: 46 | AF50: 19.7 | AG50: 23 | AH50: 16 | AI50: 17.69574034 | AJ50: 20.06387505 | AK50: 16.51167299 | AL50: 21.2479424 | AM50: 15.32760563 | AN50: 22.43200975 | AO50: 18.87980769 | AQ50: 0 | AR50: 0 | BC50: 46 | BD50: 18.7 | BE50: 46 | BF50: 0.4396502695 | BG50: 0.5603497305 | BH50: 0.426237024 | BI50: -152.3827217 | BJ50: -0.1567029942
B51: 47 | C51: =IF('input and diagram'!C51="","",'input and diagram'!C51) -> 19.7 | E51: 97 | F51: =IF('input and diagram'!F51="","",'input and diagram'!F51) -> 16.9 | H51: 147 | I51: =IF('input and diagram'!I51="","",'input and diagram'!I51) ->  | K51: 197 | L51: =IF('input and diagram'!L51="","",'input and diagram'!L51) ->  | AD51: 47 | AE51: 47 | AF51: 19.7 | AG51: 23 | AH51: 16 | AI51: 17.69574034 | AJ51: 20.06387505 | AK51: 16.51167299 | AL51: 21.2479424 | AM51: 15.32760563 | AN51: 22.43200975 | AO51: 18.87980769 | AQ51: 0 | AR51: 0 | BC51: 47 | BD51: 18.8 | BE51: 47 | BF51: 0.4731311126 | BG51: 0.5268688874 | BH51: 0.426237024 | BI51: -148.9062458 | BJ51: -0.132440332
B52: 48 | C52: =IF('input and diagram'!C52="","",'input and diagram'!C52) -> 19.2 | E52: 98 | F52: =IF('input and diagram'!F52="","",'input and diagram'!F52) -> 19.5 | H52: 148 | I52: =IF('input and diagram'!I52="","",'input and diagram'!I52) ->  | K52: 198 | L52: =IF('input and diagram'!L52="","",'input and diagram'!L52) ->  | AD52: 48 | AE52: 48 | AF52: 19.2 | AG52: 23 | AH52: 16 | AI52: 17.69574034 | AJ52: 20.06387505 | AK52: 16.51167299 | AL52: 21.2479424 | AM52: 15.32760563 | AN52: 22.43200975 | AO52: 18.87980769 | AQ52: 0 | AR52: 0 | BC52: 48 | BD52: 18.8 | BE52: 48 | BF52: 0.4731311126 | BG52: 0.5268688874 | BH52: 0.459573604 | BI52: -144.9546957 | BJ52: -0.108255396
B53: 49 | C53: =IF('input and diagram'!C53="","",'input and diagram'!C53) -> 20.6 | E53: 99 | F53: =IF('input and diagram'!F53="","",'input and diagram'!F53) -> 20.4 | H53: 149 | I53: =IF('input and diagram'!I53="","",'input and diagram'!I53) ->  | K53: 199 | L53: =IF('input and diagram'!L53="","",'input and diagram'!L53) ->  | AD53: 49 | AE53: 49 | AF53: 20.6 | AG53: 23 | AH53: 16 | AI53: 17.69574034 | AJ53: 20.06387505 | AK53: 16.51167299 | AL53: 21.2479424 | AM53: 15.32760563 | AN53: 22.43200975 | AO53: 18.87980769 | AQ53: 0 | AR53: 0 | BC53: 49 | BD53: 18.8 | BE53: 49 | BF53: 0.4731311126 | BG53: 0.5268688874 | BH53: 0.459573604 | BI53: -148.0063735 | BJ53: -0.08413362368
B54: 50 | C54: =IF('input and diagram'!C54="","",'input and diagram'!C54) -> 20.1 | E54: 100 | F54: =IF('input and diagram'!F54="","",'input and diagram'!F54) -> 19.1 | H54: 150 | I54: =IF('input and diagram'!I54="","",'input and diagram'!I54) ->  | K54: 200 | L54: =IF('input and diagram'!L54="","",'input and diagram'!L54) ->  | AD54: 50 | AE54: 50 | AF54: 20.1 | AG54: 23 | AH54: 16 | AI54: =AI53 -> 17.69574034 | AJ54: 20.06387505 | AK54: 16.51167299 | AL54: 21.2479424 | AM54: 15.32760563 | AN54: 22.43200975 | AO54: 18.87980769 | AQ54: 0 | AR54: 0 | BC54: 50 | BD54: 18.8 | BE54: 50 | BF54: 0.4731311126 | BG54: 0.5268688874 | BH54: 0.459573604 | BI54: -151.0580513 | BJ54: -0.0600607133
B55: 51 | C55: =IF(F5="","",F5) -> 18.8 | AD55: 51 | AE55: 51 | AF55: 18.8 | AG55: 23 | AH55: 16 | AI55: 17.69574034 | AJ55: 20.06387505 | AK55: 16.51167299 | AL55: 21.2479424 | AM55: 15.32760563 | AN55: 22.43200975 | AO55: 18.87980769 | AQ55: 0 | AR55: 0 | BC55: 51 | BD55: 18.9 | BE55: 51 | BF55: 0.5068029701 | BG55: 0.4931970299 | BH55: 0.459573604 | BI55: -147.1660028 | BJ55: -0.03602256317
B56: 52 | C56: =IF(F6="","",F6) -> 17.1 | AD56: 52 | AE56: 52 | AF56: 17.1 | AG56: 23 | AH56: 16 | AI56: 17.69574034 | AJ56: 20.06387505 | AK56: 16.51167299 | AL56: 21.2479424 | AM56: 15.32760563 | AN56: 22.43200975 | AO56: 18.87980769 | AQ56: 0 | AR56: 0 | BC56: 52 | BD56: 18.9 | BE56: 52 | BF56: 0.5068029701 | BG56: 0.4931970299 | BH56: 0.4931970299 | BI56: -142.8073885 | BJ56: -0.01200521306
B57: 53 | C57: =IF(F7="","",F7) -> 18.6 | AD57: 53 | AE57: 53 | AF57: 18.6 | AG57: 23 | AH57: 16 | AI57: 17.69574034 | AJ57: 20.06387505 | AK57: 16.51167299 | AL57: 21.2479424 | AM57: 15.32760563 | AN57: 22.43200975 | AO57: 18.87980769 | AQ57: 0 | AR57: 0 | BC57: 53 | BD57: 18.9 | BE57: 53 | BF57: 0.5068029701 | BG57: 0.4931970299 | BH57: 0.4931970299 | BI57: -145.5803475 | BJ57: 0.01200521306
B58: 54 | C58: =IF(F8="","",F8) -> 18 | P58: Histogramm Messwerte | AD58: 54 | AE58: 54 | AF58: 18 | AG58: 23 | AH58: 16 | AI58: 17.69574034 | AJ58: 20.06387505 | AK58: 16.51167299 | AL58: 21.2479424 | AM58: 15.32760563 | AN58: 22.43200975 | AO58: 18.87980769 | AQ58: 0 | AR58: 0 | BC58: 54 | BD58: 19 | BE58: 54 | BF58: 0.540426396 | BG58: 0.459573604 | BH58: 0.4931970299 | BI58: -141.4800394 | BJ58: 0.03602256317
B59: 55 | C59: 18.7 | P59: Anzahl Klassen Histogramm | S59: =AnzahlKlassenHistogramm -> 12 | AD59: 55 | AE59: 55 | AF59: 18.7 | AG59: 23 | AH59: 16 | AI59: 17.69574034 | AJ59: 20.06387505 | AK59: 16.51167299 | AL59: 21.2479424 | AM59: 15.32760563 | AN59: 22.43200975 | AO59: 18.87980769 | AQ59: 0 | AR59: 0 | BC59: 55 | BD59: 19 | BE59: 55 | BF59: 0.540426396 | BG59: 0.459573604 | BH59: 0.5268688874 | BI59: -136.9258415 | BJ59: 0.0600607133
B60: 56 | C60: 20.3 | P60: Nummer | Q60: Untere | R60: Obere | U60: Absolute | V60: Relative | Y60: Häufig- | AD60: 56 | AE60: 56 | AF60: 20.3 | AG60: 23 | AH60: 16 | AI60: 17.69574034 | AJ60: 20.06387505 | AK60: 16.51167299 | AL60: 21.2479424 | AM60: 15.32760563 | AN60: 22.43200975 | AO60: 18.87980769 | AQ60: 0 | AR60: 0 | BC60: 56 | BD60: 19 | BE60: 56 | BF60: 0.540426396 | BG60: 0.459573604 | BH60: 0.5268688874 | BI60: -139.4382423 | BJ60: 0.08413362368
B61: 57 | C61: 18.7 | P61: der | Q61: Klassen- | R61: Klassen- | S61: Klassen- | T61: Klassen- | U61: Summen- | V61: Summen- | W61: Absolute | X61: Relative | Y61: keits- | AD61: 57 | AE61: 57 | AF61: 18.7 | AG61: 23 | AH61: 16 | AI61: 17.69574034 | AJ61: 20.06387505 | AK61: 16.51167299 | AL61: 21.2479424 | AM61: 15.32760563 | AN61: 22.43200975 | AO61: 18.87980769 | AQ61: 0 | AR61: 0 | BC61: 57 | BD61: 19 | BE61: 57 | BF61: 0.540426396 | BG61: 0.459573604 | BH61: 0.5268688874 | BI61: -141.950643 | BJ61: 0.108255396
B62: 58 | C62: 18.8 | P62: Klasse | Q62: grenze | R62: grenze | S62: mitte | T62: breite | U62: häufigkeit | V62: häufigkeit | W62: Häufigkeit | X62: Häufigkeit | Y62: dichte | AD62: 58 | AE62: 58 | AF62: 18.8 | AG62: 23 | AH62: 16 | AI62: 17.69574034 | AJ62: 20.06387505 | AK62: 16.51167299 | AL62: 21.2479424 | AM62: 15.32760563 | AN62: 22.43200975 | AO62: 18.87980769 | AQ62: 0 | AR62: 0 | BC62: 58 | BD62: 19.1 | BE62: 58 | BF62: 0.573762976 | BG62: 0.426237024 | BH62: 0.5268688874 | BI62: -137.5793822 | BJ62: 0.132440332
B63: 59 | C63: 19.4 | P63: j | Q63: UKGj | R63: OKGj | S63: xj´ | T63: wj | U63: G(OKGj) | V63: H(OKGj) | W63: nj | X63: hj | Y63: h(x) | AD63: 59 | AE63: 59 | AF63: 19.4 | AG63: 23 | AH63: 16 | AI63: 17.69574034 | AJ63: 20.06387505 | AK63: 16.51167299 | AL63: 21.2479424 | AM63: 15.32760563 | AN63: 22.43200975 | AO63: 18.87980769 | AQ63: 0 | AR63: 0 | BC63: 59 | BD63: 19.1 | BE63: 59 | BF63: 0.573762976 | BG63: 0.426237024 | BH63: 0.5603497305 | BI63: -132.7637696 | BJ63: 0.1567029942
B64: 60 | C64: 18.5 | P64: 1 | Q64: =Minimum -> 16.1 | R64: =Q64+T64 -> 16.55 | S64: =(R64+Q64)/2 -> 16.325 | T64: =Spannweite/AnzahlKlassenHistogramm -> 0.45 | U64: =FREQUENCY(xi,R64) -> 3 | V64: =$U64/Anzahl -> 0.02884615385 | W64: =U64 -> 3 | X64: =W64/Anzahl -> 0.02884615385 | Y64: =X64/T64 -> 0.0641025641 | AD64: 60 | AE64: 60 | AF64: 18.5 | AG64: 23 | AH64: 16 | AI64: 17.69574034 | AJ64: 20.06387505 | AK64: 16.51167299 | AL64: 21.2479424 | AM64: 15.32760563 | AN64: 22.43200975 | AO64: 18.87980769 | AQ64: 0 | AR64: 0 | BC64: 60 | BD64: 19.1 | BE64: 60 | BF64: 0.573762976 | BG64: 0.426237024 | BH64: 0.5603497305 | BI64: -135.0332357 | BJ64: 0.1810582698
B65: 61 | C65: 18.6 | P65: 2 | Q65: =IF(AnzahlKlassenHistogramm<P65,Q64,Q64+T65+0.00000001) -> 16.55000001 | R65: =Q65+T65 -> 17.00000001 | S65: =(R65+Q65)/2 -> 16.77500001 | T65: 0.45 | U65: 7 | V65: 0.06730769231 | W65: =U65-U64 -> 4 | X65: 0.03846153846 | Y65: =X65/T65 -> 0.08547008547 | AD65: 61 | AE65: 61 | AF65: 18.6 | AG65: 23 | AH65: 16 | AI65: 17.69574034 | AJ65: 20.06387505 | AK65: 16.51167299 | AL65: 21.2479424 | AM65: 15.32760563 | AN65: 22.43200975 | AO65: 18.87980769 | AQ65: 0 | AR65: 0 | BC65: 61 | BD65: 19.2 | BE65: 61 | BF65: 0.6065803875 | BG65: 0.3934196125 | BH65: 0.5603497305 | BI65: -130.5725747 | BJ65: 0.2055214374
B66: 62 | C66: 19.6 | P66: 3 | Q66: 17.00000002 | R66: =Q66+T66 -> 17.45000002 | S66: =(R66+Q66)/2 -> 17.22500002 | T66: 0.45 | U66: 15 | V66: 0.1442307692 | W66: =U66-U65 -> 8 | X66: 0.07692307692 | Y66: =X66/T66 -> 0.1709401709 | AD66: 62 | AE66: 62 | AF66: 19.6 | AG66: 23 | AH66: 16 | AI66: 17.69574034 | AJ66: 20.06387505 | AK66: 16.51167299 | AL66: 21.2479424 | AM66: 15.32760563 | AN66: 22.43200975 | AO66: 18.87980769 | AQ66: 0 | AR66: 0 | BC66: 62 | BD66: 19.2 | BE66: 62 | BF66: 0.6065803875 | BG66: 0.3934196125 | BH66: 0.5603497305 | BI66: -132.7307991 | BJ66: 0.230108239
B67: 63 | C67: 18.5 | P67: 4 | Q67: 17.45000003 | R67: 17.90000003 | S67: 17.67500003 | T67: 0.45 | U67: 22 | V67: 0.2115384615 | W67: 7 | X67: 0.06730769231 | Y67: 0.1495726496 | AD67: 63 | AE67: 63 | AF67: 18.5 | AG67: 23 | AH67: 16 | AI67: 17.69574034 | AJ67: 20.06387505 | AK67: 16.51167299 | AL67: 21.2479424 | AM67: 15.32760563 | AN67: 22.43200975 | AO67: 18.87980769 | AQ67: 0 | AR67: 0 | BC67: 63 | BD67: 19.3 | BE67: 63 | BF67: 0.6386572438 | BG67: 0.3613427562 | BH67: 0.5934041773 | BI67: -121.2833618 | BJ67: 0.2548349569
B68: 64 | C68: 20 | P68: 5 | Q68: 17.90000004 | R68: 18.35000004 | S68: 18.12500004 | T68: 0.45 | U68: 31 | V68: 0.2980769231 | W68: 9 | X68: 0.08653846154 | Y68: 0.1923076923 | AD68: 64 | AE68: 64 | AF68: 20 | AG68: 23 | AH68: 16 | AI68: 17.69574034 | AJ68: 20.06387505 | AK68: 16.51167299 | AL68: 21.2479424 | AM68: 15.32760563 | AN68: 22.43200975 | AO68: 18.87980769 | AQ68: 0 | AR68: 0 | BC68: 64 | BD68: 19.3 | BE68: 64 | BF68: 0.6386572438 | BG68: 0.3613427562 | BH68: 0.5934041773 | BI68: -123.2238956 | BJ68: 0.2797184963
B69: 65 | C69: 17.8 | P69: 6 | Q69: 18.35000005 | R69: 18.80000005 | S69: 18.57500005 | T69: 0.45 | U69: 50 | V69: 0.4807692308 | W69: 19 | X69: 0.1826923077 | Y69: 0.405982906 | AD69: 65 | AE69: =IF((Anzahl>AD69),AD69,Anzahl) -> 65 | AF69: 17.8 | AG69: =IF(C69<>"",OGW,AG68) -> 23 | AH69: =IF(C69<>"",UGW,AH68) -> 16 | AI69: 17.69574034 | AJ69: 20.06387505 | AK69: 16.51167299 | AL69: 21.2479424 | AM69: 15.32760563 | AN69: 22.43200975 | AO69: 18.87980769 | AQ69: =IF(AND(C69<>"",C69<UGW),1,0) -> 0 | AR69: =IF(AND(C69<>"",C69>OGW),1,0) -> 0 | BC69: 65 | BD69: =IF(C69="",NA(),SMALL(xi,BE69)) -> 19.4 | BE69: 65 | BF69: =IF(C69="","",NORMSDIST((BD69-Mittelwert)/Standardabweichung)) -> 0.6697875557 | BG69: =IF(C69="","",1-BF69) -> 0.3302124443 | BH69: =IF(C69="","",SMALL(BG,BE69)) -> 0.5934041773 | BI69: =IF(C69="","",(2*BE69-1)*(LN(BH69)+LN(BF69))) -> -119.0249756 | BJ69: =IF(C69="",NA(),NORMSINV((BE69-0.3)/(Anzahl+0.4))) -> 0.3047764768
B70: 66 | C70: 19.8 | P70: 7 | Q70: 18.80000006 | R70: 19.25000006 | S70: 19.02500006 | T70: 0.45 | U70: 62 | V70: 0.5961538462 | W70: 12 | X70: 0.1153846154 | Y70: 0.2564102564 | AD70: 66 | AE70: 66 | AF70: 19.8 | AG70: 23 | AH70: 16 | AI70: =AI69 -> 17.69574034 | AJ70: 20.06387505 | AK70: 16.51167299 | AL70: 21.2479424 | AM70: 15.32760563 | AN70: 22.43200975 | AO70: 18.87980769 | AQ70: 0 | AR70: 0 | BC70: 66 | BD70: 19.4 | BE70: =IF(C70="","",1+BE69) -> 66 | BF70: 0.6697875557 | BG70: 0.3302124443 | BH70: 0.6258058625 | BI70: -113.9057809 | BJ70: 0.3300273317
B71: 67 | C71: 16.6 | P71: 8 | Q71: 19.25000007 | R71: 19.70000007 | S71: 19.47500007 | T71: 0.45 | U71: 77 | V71: 0.7403846154 | W71: 15 | X71: 0.1442307692 | Y71: 0.3205128205 | AD71: 67 | AE71: 67 | AF71: 16.6 | AG71: 23 | AH71: 16 | AI71: 17.69574034 | AJ71: 20.06387505 | AK71: 16.51167299 | AL71: 21.2479424 | AM71: 15.32760563 | AN71: 22.43200975 | AO71: 18.87980769 | AQ71: 0 | AR71: 0 | BC71: 67 | BD71: 19.4 | BE71: 67 | BF71: 0.6697875557 | BG71: 0.3302124443 | BH71: 0.6258058625 | BI71: -115.6448004 | BJ71: 0.3554904178
B72: 68 | C72: 19.4 | P72: 9 | Q72: 19.70000008 | R72: 20.15000008 | S72: 19.92500008 | T72: 0.45 | U72: 89 | V72: 0.8557692308 | W72: 12 | X72: 0.1153846154 | Y72: 0.2564102564 | AD72: 68 | AE72: 68 | AF72: =IF(C72<>"",C72,AF71) -> 19.4 | AG72: 23 | AH72: 16 | AI72: 17.69574034 | AJ72: 20.06387505 | AK72: 16.51167299 | AL72: 21.2479424 | AM72: 15.32760563 | AN72: 22.43200975 | AO72: 18.87980769 | AQ72: 0 | AR72: 0 | BC72: 68 | BD72: 19.4 | BE72: 68 | BF72: 0.6697875557 | BG72: 0.3302124443 | BH72: 0.6258058625 | BI72: -117.38382 | BJ72: 0.3811861383
B73: 69 | C73: 19.3 | P73: 10 | Q73: 20.15000009 | R73: 20.60000009 | S73: 20.37500009 | T73: 0.45 | U73: 100 | V73: 0.9615384615 | W73: 11 | X73: 0.1057692308 | Y73: 0.235042735 | AD73: 69 | AE73: 69 | AF73: 19.3 | AG73: 23 | AH73: 16 | AI73: 17.69574034 | AJ73: 20.06387505 | AK73: 16.51167299 | AL73: 21.2479424 | AM73: 15.32760563 | AN73: 22.43200975 | AO73: 18.87980769 | AQ73: 0 | AR73: 0 | BC73: 69 | BD73: 19.5 | BE73: 69 | BF73: 0.6997846606 | BG73: 0.3002153394 | BH73: 0.6258058625 | BI73: -113.1205847 | BJ73: 0.407136079
B74: 70 | C74: 20.1 | P74: 11 | Q74: 20.6000001 | R74: 21.0500001 | S74: 20.8250001 | T74: 0.45 | U74: 103 | V74: 0.9903846154 | W74: 3 | X74: 0.02884615385 | Y74: 0.0641025641 | AD74: 70 | AE74: 70 | AF74: 20.1 | AG74: 23 | AH74: 16 | AI74: 17.69574034 | AJ74: 20.06387505 | AK74: 16.51167299 | AL74: 21.2479424 | AM74: 15.32760563 | AN74: 22.43200975 | AO74: 18.87980769 | AQ74: 0 | AR74: 0 | BC74: 70 | BD74: 19.5 | BE74: 70 | BF74: 0.6997846606 | BG74: 0.3002153394 | BH74: 0.6258058625 | BI74: -114.7719801 | BJ74: 0.4333631628
B75: 71 | C75: 20.5 | P75: 12 | Q75: 21.05000011 | R75: 21.50000011 | S75: 21.27500011 | T75: 0.45 | U75: 104 | V75: 1 | W75: 1 | X75: 0.009615384615 | Y75: 0.02136752137 | AD75: 71 | AE75: 71 | AF75: 20.5 | AG75: 23 | AH75: 16 | AI75: 17.69574034 | AJ75: 20.06387505 | AK75: 16.51167299 | AL75: 21.2479424 | AM75: 15.32760563 | AN75: 22.43200975 | AO75: 18.87980769 | AQ75: 0 | AR75: 0 | BC75: 71 | BD75: 19.5 | BE75: 71 | BF75: 0.6997846606 | BG75: 0.3002153394 | BH75: 0.6573420725 | BI75: -109.4912033 | BJ75: 0.4598918231
B76: 72 | C76: 20 | P76: 13 | Q76: 21.05000011 | R76: 21.50000011 | S76: 21.27500011 | T76: 0.45 | U76: 104 | V76: 1 | W76: 0 | X76: 0 | Y76: 0 | AD76: 72 | AE76: 72 | AF76: 20 | AG76: 23 | AH76: 16 | AI76: 17.69574034 | AJ76: 20.06387505 | AK76: 16.51167299 | AL76: 21.2479424 | AM76: 15.32760563 | AN76: 22.43200975 | AO76: 18.87980769 | AQ76: 0 | AR76: 0 | BC76: 72 | BD76: 19.6 | BE76: 72 | BF76: 0.7284844962 | BG76: 0.2715155038 | BH76: 0.6573420725 | BI76: -105.2965733 | BJ76: 0.4867482021
B77: 73 | C77: 20.8 | P77: 14 | Q77: 21.05000011 | R77: 21.50000011 | S77: 21.27500011 | T77: 0.45 | U77: 104 | V77: 1 | W77: 0 | X77: 0 | Y77: 0 | AD77: 73 | AE77: 73 | AF77: 20.8 | AG77: 23 | AH77: 16 | AI77: 17.69574034 | AJ77: 20.06387505 | AK77: 16.51167299 | AL77: 21.2479424 | AM77: 15.32760563 | AN77: 22.43200975 | AO77: 18.87980769 | AQ77: 0 | AR77: 0 | BC77: 73 | BD77: 19.6 | BE77: 73 | BF77: 0.7284844962 | BG77: 0.2715155038 | BH77: 0.6573420725 | BI77: -106.7692526 | BJ77: 0.5139603769
B78: 74 | C78: 17.7 | P78: 15 | Q78: 21.05000011 | R78: 21.50000011 | S78: 21.27500011 | T78: 0.45 | U78: 104 | V78: 1 | W78: 0 | X78: 0 | Y78: 0 | AD78: 74 | AE78: 74 | AF78: 17.7 | AG78: 23 | AH78: 16 | AI78: 17.69574034 | AJ78: 20.06387505 | AK78: 16.51167299 | AL78: 21.2479424 | AM78: 15.32760563 | AN78: 22.43200975 | AO78: 18.87980769 | AQ78: 0 | AR78: 0 | BC78: 74 | BD78: 19.6 | BE78: 74 | BF78: 0.7284844962 | BG78: 0.2715155038 | BH78: 0.6878179063 | BI78: -101.5799521 | BJ78: 0.5415586189
B79: 75 | C79: 18.9 | P79: 16 | Q79: 21.05000011 | R79: 21.50000011 | S79: 21.27500011 | T79: 0.45 | U79: 104 | V79: 1 | W79: 0 | X79: 0 | Y79: 0 | AD79: 75 | AE79: 75 | AF79: 18.9 | AG79: 23 | AH79: 16 | AI79: 17.69574034 | AJ79: 20.06387505 | AK79: 16.51167299 | AL79: 21.2479424 | AM79: 15.32760563 | AN79: 22.43200975 | AO79: 18.87980769 | AQ79: 0 | AR79: 0 | BC79: 75 | BD79: 19.7 | BE79: 75 | BF79: 0.7557481256 | BG79: 0.2442518744 | BH79: 0.6878179063 | BI79: -97.48746261 | BJ79: 0.5695756949
B80: 76 | C80: 18.8 | P80: 17 | Q80: 21.05000011 | R80: 21.50000011 | S80: 21.27500011 | T80: 0.45 | U80: 104 | V80: 1 | W80: 0 | X80: 0 | Y80: 0 | AD80: 76 | AE80: 76 | AF80: 18.8 | AG80: 23 | AH80: 16 | AI80: 17.69574034 | AJ80: 20.06387505 | AK80: 16.51167299 | AL80: 21.2479424 | AM80: 15.32760563 | AN80: 22.43200975 | AO80: 18.87980769 | AQ80: 0 | AR80: 0 | BC80: 76 | BD80: 19.7 | BE80: 76 | BF80: 0.7557481256 | BG80: 0.2442518744 | BH80: 0.6878179063 | BI80: -98.79601916 | BJ80: 0.5980472154
B81: 77 | C81: 16.4 | P81: 18 | Q81: 21.05000011 | R81: 21.50000011 | S81: 21.27500011 | T81: 0.45 | U81: 104 | V81: 1 | W81: 0 | X81: 0 | Y81: 0 | AD81: 77 | AE81: 77 | AF81: 16.4 | AG81: 23 | AH81: 16 | AI81: 17.69574034 | AJ81: 20.06387505 | AK81: 16.51167299 | AL81: 21.2479424 | AM81: 15.32760563 | AN81: 22.43200975 | AO81: 18.87980769 | AQ81: 0 | AR81: 0 | BC81: 77 | BD81: 19.7 | BE81: 77 | BF81: 0.7557481256 | BG81: 0.2442518744 | BH81: 0.744918497 | BI81: -87.90272157 | BJ81: 0.627012043
B82: 78 | C82: 18.5 | P82: 19 | Q82: 21.05000011 | R82: 21.50000011 | S82: 21.27500011 | T82: 0.45 | U82: 104 | V82: 1 | W82: 0 | X82: 0 | Y82: 0 | AD82: 78 | AE82: 78 | AF82: 18.5 | AG82: 23 | AH82: 16 | AI82: 17.69574034 | AJ82: 20.06387505 | AK82: 16.51167299 | AL82: 21.2479424 | AM82: 15.32760563 | AN82: 22.43200975 | AO82: 18.87980769 | AQ82: 0 | AR82: 0 | BC82: 78 | BD82: 19.8 | BE82: 78 | BF82: 0.7814634573 | BG82: 0.2185365427 | BH82: 0.744918497 | BI82: -83.86544024 | BJ82: 0.6565127715
B83: 79 | C83: 19 | P83: 20 | Q83: 21.05000011 | R83: 21.50000011 | S83: 21.27500011 | T83: 0.45 | U83: 104 | V83: 1 | W83: 0 | X83: 0 | Y83: 0 | AD83: 79 | AE83: 79 | AF83: 19 | AG83: 23 | AH83: 16 | AI83: 17.69574034 | AJ83: 20.06387505 | AK83: 16.51167299 | AL83: 21.2479424 | AM83: 15.32760563 | AN83: 22.43200975 | AO83: 18.87980769 | AQ83: 0 | AR83: 0 | BC83: 79 | BD83: 19.8 | BE83: 79 | BF83: 0.7814634573 | BG83: 0.2185365427 | BH83: 0.744918497 | BI83: -84.94757495 | BJ83: 0.6865962936
B84: 80 | C84: 20.6 | AD84: 80 | AE84: 80 | AF84: 20.6 | AG84: 23 | AH84: 16 | AI84: 17.69574034 | AJ84: 20.06387505 | AK84: 16.51167299 | AL84: 21.2479424 | AM84: 15.32760563 | AN84: 22.43200975 | AO84: 18.87980769 | AQ84: 0 | AR84: 0 | BC84: 80 | BD84: 19.9 | BE84: 80 | BF84: 0.8055461357 | BG84: 0.1944538643 | BH84: 0.7712708301 | BI84: -75.67612918 | BJ84: 0.7173144767
B85: 81 | C85: 19.2 | AD85: 81 | AE85: 81 | AF85: 19.2 | AG85: 23 | AH85: 16 | AI85: 17.69574034 | AJ85: 20.06387505 | AK85: 16.51167299 | AL85: 21.2479424 | AM85: 15.32760563 | AN85: 22.43200975 | AO85: 18.87980769 | AQ85: 0 | AR85: 0 | BC85: 81 | BD85: 19.9 | BE85: 81 | BF85: 0.8055461357 | BG85: 0.1944538643 | BH85: 0.7712708301 | BI85: -76.62803018 | BJ85: 0.7487249731
B86: 82 | C86: 17.1 | P86: Histogramm Normalverteilung | AD86: 82 | AE86: 82 | AF86: 17.1 | AG86: 23 | AH86: 16 | AI86: =AI85 -> 17.69574034 | AJ86: 20.06387505 | AK86: 16.51167299 | AL86: 21.2479424 | AM86: 15.32760563 | AN86: 22.43200975 | AO86: 18.87980769 | AQ86: 0 | AR86: 0 | BC86: 82 | BD86: 19.9 | BE86: 82 | BF86: 0.8055461357 | BG86: 0.1944538643 | BH86: 0.7712708301 | BI86: -77.57993118 | BJ86: 0.7808921994
B87: 83 | C87: 16.3 | Q87: 1.1 | R87: =R88-(Q87*Standardabweichung) -> 11.06496316 | S87: =NORMDIST(R87,Mittelwert,Standardabweichung,0) -> 1.171115807e-10 | U87: USL | V87: =OGW -> 23 | W87: =MAX(Häufigkeitsdichte)*1.05 -> 0.4262820513 | AD87: 83 | AE87: 83 | AF87: 16.3 | AG87: 23 | AH87: 16 | AI87: 17.69574034 | AJ87: 20.06387505 | AK87: 16.51167299 | AL87: 21.2479424 | AM87: 15.32760563 | AN87: 22.43200975 | AO87: 18.87980769 | AQ87: 0 | AR87: 0 | BC87: 83 | BD87: 20 | BE87: 83 | BF87: 0.8279396183 | BG87: 0.1720603817 | BH87: 0.7960212149 | BI87: -68.79584146 | BJ87: 0.8138885298
B88: 84 | C88: 17.2 | Q88: 1 | R88: 12.36743725 | S88: 9.095563706e-08 | U88: LSL | V88: =UGW -> 16 | W88: 0.4262820513 | AD88: 84 | AE88: 84 | AF88: 17.2 | AG88: 23 | AH88: 16 | AI88: 17.69574034 | AJ88: 20.06387505 | AK88: 16.51167299 | AL88: 21.2479424 | AM88: 15.32760563 | AN88: 22.43200975 | AO88: 18.87980769 | AQ88: 0 | AR88: 0 | BC88: 84 | BD88: 20 | BE88: 84 | BF88: 0.8279396183 | BG88: 0.1720603817 | BH88: 0.819101918 | BI88: -64.85642275 | BJ88: 0.8477957612
B89: 85 | C89: 17.9 | Q89: 0.9 | R89: 13.5515046 | S89: 1.349901343e-05 | U89: + 3 sigma | V89: =Mittelwert+3*Standardabweichung -> 22.43200975 | W89: 0.4262820513 | AD89: 85 | AE89: 85 | AF89: 17.9 | AG89: 23 | AH89: 16 | AI89: 17.69574034 | AJ89: 20.06387505 | AK89: 16.51167299 | AL89: 21.2479424 | AM89: 15.32760563 | AN89: 22.43200975 | AO89: 18.87980769 | AQ89: 0 | AR89: 0 | BC89: 85 | BD89: 20 | BE89: 85 | BF89: 0.8279396183 | BG89: 0.1720603817 | BH89: 0.840472695 | BI89: -61.28039124 | BJ89: 0.8827069317
B90: 86 | C90: 19.1 | Q90: 0.8 | R90: 14.61716522 | S90: 0.000516779665 | U90: - 3 sigma | V90: =Mittelwert-3*Standardabweichung -> 15.32760563 | W90: 0.4262820513 | AD90: 86 | AE90: 86 | AF90: 19.1 | AG90: 23 | AH90: 16 | AI90: 17.69574034 | AJ90: 20.06387505 | AK90: 16.51167299 | AL90: 21.2479424 | AM90: 15.32760563 | AN90: 22.43200975 | AO90: 18.87980769 | AQ90: 0 | AR90: 0 | BC90: 86 | BD90: 20 | BE90: 86 | BF90: 0.8279396183 | BG90: 0.1720603817 | BH90: 0.840472695 | BI90: -62.00560297 | BJ90: 0.9187285975
B91: 87 | C91: 17.3 | Q91: 0.7 | R91: 15.5644191 | S91: 0.006684967339 | U91: mid | V91: =Mittelwert -> 18.87980769 | W91: 0.4262820513 | AD91: 87 | AE91: 87 | AF91: 17.3 | AG91: 23 | AH91: 16 | AI91: 17.69574034 | AJ91: 20.06387505 | AK91: 16.51167299 | AL91: 21.2479424 | AM91: 15.32760563 | AN91: 22.43200975 | AO91: 18.87980769 | AQ91: 0 | AR91: 0 | BC91: 87 | BD91: 20 | BE91: 87 | BF91: 0.8279396183 | BG91: 0.1720603817 | BH91: 0.8601196742 | BI91: -58.7332916 | BJ91: 0.9559837196
B92: 88 | C92: 19.4 | Q92: 0.6 | R92: 16.39326625 | S92: 0.03714619432 | U92: nominal value | V92: =Sollwert -> 19 | W92: 0.4262820513 | AD92: 88 | AE92: 88 | AF92: 19.4 | AG92: 23 | AH92: 16 | AI92: 17.69574034 | AJ92: 20.06387505 | AK92: 16.51167299 | AL92: 21.2479424 | AM92: 15.32760563 | AN92: 22.43200975 | AO92: 18.87980769 | AQ92: 0 | AR92: 0 | BC92: 88 | BD92: 20.1 | BE92: 88 | BF92: 0.8486144835 | BG92: 0.1513855165 | BH92: 0.8780536036 | BI92: -51.48463498 | BJ92: 0.994615365
B93: 89 | C93: 18.3 | Q93: 0.5 | R93: 17.10370666 | S93: 0.1093836388 | AD93: 89 | AE93: 89 | AF93: 18.3 | AG93: 23 | AH93: 16 | AI93: 17.69574034 | AJ93: 20.06387505 | AK93: 16.51167299 | AL93: 21.2479424 | AM93: 15.32760563 | AN93: 22.43200975 | AO93: 18.87980769 | AQ93: 0 | AR93: 0 | BC93: 89 | BD93: 20.1 | BE93: 89 | BF93: 0.8486144835 | BG93: 0.1513855165 | BH93: 0.8780536036 | BI93: -52.0730308 | BJ93: 1.034791521
B94: 90 | C94: 19.3 | Q94: 0.4 | R94: 17.69574034 | S94: 0.204355541 | AD94: 90 | AE94: 90 | AF94: 19.3 | AG94: 23 | AH94: 16 | AI94: 17.69574034 | AJ94: 20.06387505 | AK94: 16.51167299 | AL94: 21.2479424 | AM94: 15.32760563 | AN94: 22.43200975 | AO94: 18.87980769 | AQ94: 0 | AR94: 0 | BC94: 90 | BD94: 20.2 | BE94: 90 | BF94: 0.8675670457 | BG94: 0.1324329543 | BH94: 0.9089343032 | BI94: -42.52054519 | BJ94: 1.07671145
B95: 91 | C95: 17.2 | Q95: 0.3 | R95: 18.16936728 | S95: 0.2814236893 | AD95: 91 | AE95: 91 | AF95: 17.2 | AG95: 23 | AH95: 16 | AI95: 17.69574034 | AJ95: 20.06387505 | AK95: 16.51167299 | AL95: 21.2479424 | AM95: 15.32760563 | AN95: 22.43200975 | AO95: 18.87980769 | AQ95: 0 | AR95: 0 | BC95: 91 | BD95: 20.3 | BE95: 91 | BF95: 0.8848173743 | BG95: 0.1151826257 | BH95: 0.9089343032 | BI95: -39.43202164 | BJ95: 1.120614225
B96: 92 | C96: 17.5 | Q96: 0.2 | R96: 18.52458749 | S96: 0.3220997644 | AD96: 92 | AE96: 92 | AF96: 17.5 | AG96: 23 | AH96: 16 | AI96: 17.69574034 | AJ96: 20.06387505 | AK96: 16.51167299 | AL96: 21.2479424 | AM96: 15.32760563 | AN96: 22.43200975 | AO96: 18.87980769 | AQ96: 0 | AR96: 0 | BC96: 92 | BD96: 20.4 | BE96: 92 | BF96: 0.9004068321 | BG96: 0.09959316794 | BH96: 0.9089343032 | BI96: -36.67156093 | BJ96: 1.166790414
B97: 93 | C97: 19.6 | Q97: 0.1 | R97: 18.76140096 | S97: 0.3352449052 | AD97: 93 | AE97: 93 | AF97: 19.6 | AG97: 23 | AH97: 16 | AI97: 17.69574034 | AJ97: 20.06387505 | AK97: 16.51167299 | AL97: 21.2479424 | AM97: 15.32760563 | AN97: 22.43200975 | AO97: 18.87980769 | AQ97: 0 | AR97: 0 | BC97: 93 | BD97: 20.4 | BE97: 93 | BF97: 0.9004068321 | BG97: 0.09959316794 | BH97: 0.9220032213 | BI97: -34.4313016 | BJ97: 1.215598434
B98: 94 | C98: 17.6 | Q98: 0 | R98: =Mittelwert -> 18.87980769 | S98: 0.3369253272 | AD98: 94 | AE98: 94 | AF98: 17.6 | AG98: 23 | AH98: 16 | AI98: 17.69574034 | AJ98: 20.06387505 | AK98: 16.51167299 | AL98: 21.2479424 | AM98: 15.32760563 | AN98: 22.43200975 | AO98: 18.87980769 | AQ98: 0 | AR98: 0 | BC98: 94 | BD98: 20.4 | BE98: 94 | BF98: 0.9004068321 | BG98: 0.09959316794 | BH98: 0.9220032213 | BI98: -34.80353189 | BJ98: 1.267488025
B99: 95 | C99: 20 | Q99: 0.1 | R99: =R98+(Q99*Standardabweichung) -> 18.99821443 | S99: 0.3352449052 | AD99: 95 | AE99: 95 | AF99: 20 | AG99: 23 | AH99: 16 | AI99: 17.69574034 | AJ99: 20.06387505 | AK99: 16.51167299 | AL99: 21.2479424 | AM99: 15.32760563 | AN99: 22.43200975 | AO99: 18.87980769 | AQ99: 0 | AR99: 0 | BC99: 95 | BD99: 20.4 | BE99: 95 | BF99: 0.9004068321 | BG99: 0.09959316794 | BH99: 0.9335972959 | BI99: -32.81392988 | BJ99: 1.323034952
B100: 96 | C100: 19.9 | Q100: 0.2 | R100: 19.2350279 | S100: 0.3220997644 | AD100: 96 | AE100: 96 | AF100: 19.9 | AG100: 23 | AH100: 16 | AI100: 17.69574034 | AJ100: 20.06387505 | AK100: 16.51167299 | AL100: 21.2479424 | AM100: 15.32760563 | AN100: 22.43200975 | AO100: 18.87980769 | AQ100: 0 | AR100: 0 | BC100: 96 | BD100: 20.5 | BE100: 96 | BF100: 0.9143952578 | BG100: 0.08560474221 | BH100: 0.9335972959 | BI100: -30.2166674 | BJ100: 1.382994127
B101: 97 | C101: 16.9 | Q101: 0.3 | R101: 19.5902481 | S101: 0.2814236893 | AD101: 97 | AE101: =IF((Anzahl>AD101),AD101,Anzahl) -> 97 | AF101: 16.9 | AG101: =IF(C101<>"",OGW,AG100) -> 23 | AH101: =IF(C101<>"",UGW,AH100) -> 16 | AI101: 17.69574034 | AJ101: 20.06387505 | AK101: 16.51167299 | AL101: 21.2479424 | AM101: 15.32760563 | AN101: 22.43200975 | AO101: 18.87980769 | AQ101: =IF(AND(C101<>"",C101<UGW),1,0) -> 0 | AR101: =IF(AND(C101<>"",C101>OGW),1,0) -> 0 | BC101: 97 | BD101: =IF(C101="",NA(),SMALL(xi,BE101)) -> 20.5 | BE101: 97 | BF101: =IF(C101="","",NORMSDIST((BD101-Mittelwert)/Standardabweichung)) -> 0.9143952578 | BG101: =IF(C101="","",1-BF101) -> 0.08560474221 | BH101: =IF(C101="","",SMALL(BG,BE101)) -> 0.9335972959 | BI101: =IF(C101="","",(2*BE101-1)*(LN(BH101)+LN(BF101))) -> -30.53307229 | BJ101: =IF(C101="",NA(),NORMSINV((BE101-0.3)/(Anzahl+0.4))) -> 1.448384388
B102: 98 | C102: 19.5 | Q102: 0.4 | R102: 20.06387505 | S102: 0.204355541 | AD102: 98 | AE102: 98 | AF102: 19.5 | AG102: 23 | AH102: 16 | AI102: =AI101 -> 17.69574034 | AJ102: 20.06387505 | AK102: 16.51167299 | AL102: 21.2479424 | AM102: 15.32760563 | AN102: 22.43200975 | AO102: 18.87980769 | AQ102: 0 | AR102: 0 | BC102: 98 | BD102: 20.5 | BE102: =IF(C102="","",1+BE101) -> 98 | BF102: 0.9143952578 | BG102: 0.08560474221 | BH102: 0.9527417589 | BI102: -26.89122963 | BJ102: 1.52063089
B103: 99 | C103: 20.4 | Q103: 0.5 | R103: 20.65590872 | S103: 0.1093836388 | AD103: 99 | AE103: 99 | AF103: 20.4 | AG103: 23 | AH103: 16 | AI103: 17.69574034 | AJ103: 20.06387505 | AK103: 16.51167299 | AL103: 21.2479424 | AM103: 15.32760563 | AN103: 22.43200975 | AO103: 18.87980769 | AQ103: 0 | AR103: 0 | BC103: 99 | BD103: 20.6 | BE103: 99 | BF103: 0.9268579213 | BG103: 0.0731420787 | BH103: 0.9527417589 | BI103: -24.50017713 | BJ103: 1.601820076
B104: 100 | C104: =IF(F54="","",F54) -> 19.1 | Q104: 0.6 | R104: 21.36634913 | S104: 0.03714619432 | AD104: 100 | AE104: 100 | AF104: 19.1 | AG104: 23 | AH104: 16 | AI104: 17.69574034 | AJ104: 20.06387505 | AK104: 16.51167299 | AL104: 21.2479424 | AM104: 15.32760563 | AN104: 22.43200975 | AO104: 18.87980769 | AQ104: 0 | AR104: 0 | BC104: 100 | BD104: 20.6 | BE104: 100 | BF104: 0.9268579213 | BG104: 0.0731420787 | BH104: 0.9604979879 | BI104: -23.13541842 | BJ104: 1.695195638
B105: 101 | C105: =IF(I5="","",I5) -> 16.9 | Q105: 0.7 | R105: 22.19519628 | S105: 0.006684967339 | AD105: 101 | AE105: 101 | AF105: 16.9 | AG105: 23 | AH105: 16 | AI105: 17.69574034 | AJ105: 20.06387505 | AK105: 16.51167299 | AL105: 21.2479424 | AM105: 15.32760563 | AN105: 22.43200975 | AO105: 18.87980769 | AQ105: 0 | AR105: 0 | BC105: 101 | BD105: 20.8 | BE105: 101 | BF105: 0.9475653214 | BG105: 0.05243467858 | BH105: 0.972910565 | BI105: -16.34582679 | BJ105: 1.806237651
B106: 102 | C106: =IF(I6="","",I6) -> 19.5 | Q106: 0.8 | R106: 23.14245016 | S106: 0.000516779665 | AD106: 102 | AE106: 102 | AF106: 19.5 | AG106: 23 | AH106: 16 | AI106: 17.69574034 | AJ106: 20.06387505 | AK106: 16.51167299 | AL106: 21.2479424 | AM106: 15.32760563 | AN106: 22.43200975 | AO106: 18.87980769 | AQ106: 0 | AR106: 0 | BC106: 102 | BD106: 20.9 | BE106: 102 | BF106: 0.9560095917 | BG106: 0.04399040829 | BH106: 0.9818839481 | BI106: -12.84370639 | BJ106: 1.945422591
B107: 103 | C107: 20.4 | Q107: 0.9 | R107: 24.20811078 | S107: 1.349901343e-05 | AD107: 103 | AE107: 103 | AF107: 20.4 | AG107: 23 | AH107: 16 | AI107: 17.69574034 | AJ107: 20.06387505 | AK107: 16.51167299 | AL107: 21.2479424 | AM107: 15.32760563 | AN107: 22.43200975 | AO107: 18.87980769 | AQ107: 0 | AR107: 0 | BC107: 103 | BD107: 21 | BE107: 103 | BF107: 0.963321335 | BG107: 0.03667866501 | BH107: 0.9853255349 | BI107: -10.69104557 | BJ107: 2.137380578
B108: 104 | C108: 20 | Q108: 1 | R108: 25.39217813 | S108: 9.095563706e-08 | AD108: 104 | AE108: 104 | AF108: 20 | AG108: 23 | AH108: 16 | AI108: 17.69574034 | AJ108: 20.06387505 | AK108: 16.51167299 | AL108: 21.2479424 | AM108: 15.32760563 | AN108: 22.43200975 | AO108: 18.87980769 | AQ108: 0 | AR108: 0 | BC108: 104 | BD108: 21.5 | BE108: 104 | BF108: 0.9865468462 | BG108: 0.0134531538 | BH108: 0.9905545524 | BI108: -4.768204859 | BJ108: 2.472692113
B109: 105 | Q109: 1.1 | R109: 26.69465222 | S109: 1.171115807e-10 | AD109: 105 | AE109: 104 | AF109: 20 | AG109: 23 | AH109: 16 | AI109: 17.69574034 | AJ109: 20.06387505 | AK109: 16.51167299 | AL109: 21.2479424 | AM109: 15.32760563 | AN109: 22.43200975 | AO109: 18.87980769 | AQ109: 0 | AR109: 0 | BC109: 105
B110: 106 | AD110: 106 | AE110: 104 | AF110: 20 | AG110: 23 | AH110: 16 | AI110: 17.69574034 | AJ110: 20.06387505 | AK110: 16.51167299 | AL110: 21.2479424 | AM110: 15.32760563 | AN110: 22.43200975 | AO110: 18.87980769 | AQ110: 0 | AR110: 0 | BC110: 106
B111: 107 | AD111: 107 | AE111: 104 | AF111: 20 | AG111: 23 | AH111: 16 | AI111: 17.69574034 | AJ111: 20.06387505 | AK111: 16.51167299 | AL111: 21.2479424 | AM111: 15.32760563 | AN111: 22.43200975 | AO111: 18.87980769 | AQ111: 0 | AR111: 0 | BC111: 107
B112: 108 | AD112: 108 | AE112: 104 | AF112: 20 | AG112: 23 | AH112: 16 | AI112: 17.69574034 | AJ112: 20.06387505 | AK112: 16.51167299 | AL112: 21.2479424 | AM112: 15.32760563 | AN112: 22.43200975 | AO112: 18.87980769 | AQ112: 0 | AR112: 0 | BC112: 108
B113: 109 | AD113: 109 | AE113: 104 | AF113: 20 | AG113: 23 | AH113: 16 | AI113: 17.69574034 | AJ113: 20.06387505 | AK113: 16.51167299 | AL113: 21.2479424 | AM113: 15.32760563 | AN113: 22.43200975 | AO113: 18.87980769 | AQ113: 0 | AR113: 0 | BC113: 109
B114: 110 | AD114: 110 | AE114: 104 | AF114: 20 | AG114: 23 | AH114: 16 | AI114: 17.69574034 | AJ114: 20.06387505 | AK114: 16.51167299 | AL114: 21.2479424 | AM114: 15.32760563 | AN114: 22.43200975 | AO114: 18.87980769 | AQ114: 0 | AR114: 0 | BC114: 110
B115: 111 | AD115: 111 | AE115: 104 | AF115: 20 | AG115: 23 | AH115: 16 | AI115: 17.69574034 | AJ115: 20.06387505 | AK115: 16.51167299 | AL115: 21.2479424 | AM115: 15.32760563 | AN115: 22.43200975 | AO115: 18.87980769 | AQ115: 0 | AR115: 0 | BC115: 111
B116: 112 | AD116: 112 | AE116: 104 | AF116: 20 | AG116: 23 | AH116: 16 | AI116: 17.69574034 | AJ116: 20.06387505 | AK116: 16.51167299 | AL116: 21.2479424 | AM116: 15.32760563 | AN116: 22.43200975 | AO116: 18.87980769 | AQ116: 0 | AR116: 0 | BC116: 112
B117: 113 | AD117: 113 | AE117: 104 | AF117: 20 | AG117: 23 | AH117: 16 | AI117: 17.69574034 | AJ117: 20.06387505 | AK117: 16.51167299 | AL117: 21.2479424 | AM117: 15.32760563 | AN117: 22.43200975 | AO117: 18.87980769 | AQ117: 0 | AR117: 0 | BC117: 113
B118: 114 | AD118: 114 | AE118: 104 | AF118: 20 | AG118: 23 | AH118: 16 | AI118: =AI117 -> 17.69574034 | AJ118: 20.06387505 | AK118: 16.51167299 | AL118: 21.2479424 | AM118: 15.32760563 | AN118: 22.43200975 | AO118: 18.87980769 | AQ118: 0 | AR118: 0 | BC118: 114
B119: 115 | AD119: 115 | AE119: 104 | AF119: 20 | AG119: 23 | AH119: 16 | AI119: 17.69574034 | AJ119: 20.06387505 | AK119: 16.51167299 | AL119: 21.2479424 | AM119: 15.32760563 | AN119: 22.43200975 | AO119: 18.87980769 | AQ119: 0 | AR119: 0 | BC119: 115
B120: 116 | AD120: 116 | AE120: 104 | AF120: 20 | AG120: 23 | AH120: 16 | AI120: 17.69574034 | AJ120: 20.06387505 | AK120: 16.51167299 | AL120: 21.2479424 | AM120: 15.32760563 | AN120: 22.43200975 | AO120: 18.87980769 | AQ120: 0 | AR120: 0 | BC120: 116
B121: 117 | AD121: 117 | AE121: 104 | AF121: 20 | AG121: 23 | AH121: 16 | AI121: 17.69574034 | AJ121: 20.06387505 | AK121: 16.51167299 | AL121: 21.2479424 | AM121: 15.32760563 | AN121: 22.43200975 | AO121: 18.87980769 | AQ121: 0 | AR121: 0 | BC121: 117
B122: 118 | AD122: 118 | AE122: 104 | AF122: 20 | AG122: 23 | AH122: 16 | AI122: 17.69574034 | AJ122: 20.06387505 | AK122: 16.51167299 | AL122: 21.2479424 | AM122: 15.32760563 | AN122: 22.43200975 | AO122: 18.87980769 | AQ122: 0 | AR122: 0 | BC122: 118
B123: 119 | AD123: 119 | AE123: 104 | AF123: 20 | AG123: 23 | AH123: 16 | AI123: 17.69574034 | AJ123: 20.06387505 | AK123: 16.51167299 | AL123: 21.2479424 | AM123: 15.32760563 | AN123: 22.43200975 | AO123: 18.87980769 | AQ123: 0 | AR123: 0 | BC123: 119
B124: 120 | AD124: 120 | AE124: 104 | AF124: 20 | AG124: 23 | AH124: 16 | AI124: 17.69574034 | AJ124: 20.06387505 | AK124: 16.51167299 | AL124: 21.2479424 | AM124: 15.32760563 | AN124: 22.43200975 | AO124: 18.87980769 | AQ124: 0 | AR124: 0 | BC124: 120
B125: 121 | AD125: 121 | AE125: 104 | AF125: 20 | AG125: 23 | AH125: 16 | AI125: 17.69574034 | AJ125: 20.06387505 | AK125: 16.51167299 | AL125: 21.2479424 | AM125: 15.32760563 | AN125: 22.43200975 | AO125: 18.87980769 | AQ125: 0 | AR125: 0 | BC125: 121
B126: 122 | AD126: 122 | AE126: 104 | AF126: 20 | AG126: 23 | AH126: 16 | AI126: 17.69574034 | AJ126: 20.06387505 | AK126: 16.51167299 | AL126: 21.2479424 | AM126: 15.32760563 | AN126: 22.43200975 | AO126: 18.87980769 | AQ126: 0 | AR126: 0 | BC126: 122
B127: 123 | AD127: 123 | AE127: 104 | AF127: 20 | AG127: 23 | AH127: 16 | AI127: 17.69574034 | AJ127: 20.06387505 | AK127: 16.51167299 | AL127: 21.2479424 | AM127: 15.32760563 | AN127: 22.43200975 | AO127: 18.87980769 | AQ127: 0 | AR127: 0 | BC127: 123
B128: 124 | AD128: 124 | AE128: 104 | AF128: 20 | AG128: 23 | AH128: 16 | AI128: 17.69574034 | AJ128: 20.06387505 | AK128: 16.51167299 | AL128: 21.2479424 | AM128: 15.32760563 | AN128: 22.43200975 | AO128: 18.87980769 | AQ128: 0 | AR128: 0 | BC128: 124
B129: 125 | AD129: 125 | AE129: 104 | AF129: 20 | AG129: 23 | AH129: 16 | AI129: 17.69574034 | AJ129: 20.06387505 | AK129: 16.51167299 | AL129: 21.2479424 | AM129: 15.32760563 | AN129: 22.43200975 | AO129: 18.87980769 | AQ129: 0 | AR129: 0 | BC129: 125
B130: 126 | AD130: 126 | AE130: 104 | AF130: 20 | AG130: 23 | AH130: 16 | AI130: 17.69574034 | AJ130: 20.06387505 | AK130: 16.51167299 | AL130: 21.2479424 | AM130: 15.32760563 | AN130: 22.43200975 | AO130: 18.87980769 | AQ130: 0 | AR130: 0 | BC130: 126
B131: 127 | AD131: 127 | AE131: 104 | AF131: 20 | AG131: 23 | AH131: 16 | AI131: 17.69574034 | AJ131: 20.06387505 | AK131: 16.51167299 | AL131: 21.2479424 | AM131: 15.32760563 | AN131: 22.43200975 | AO131: 18.87980769 | AQ131: 0 | AR131: 0 | BC131: 127
B132: 128 | AD132: 128 | AE132: 104 | AF132: 20 | AG132: 23 | AH132: 16 | AI132: 17.69574034 | AJ132: 20.06387505 | AK132: 16.51167299 | AL132: 21.2479424 | AM132: 15.32760563 | AN132: 22.43200975 | AO132: 18.87980769 | AQ132: 0 | AR132: 0 | BC132: 128
B133: 129 | AD133: 129 | AE133: =IF((Anzahl>AD133),AD133,Anzahl) -> 104 | AF133: 20 | AG133: =IF(C133<>"",OGW,AG132) -> 23 | AH133: =IF(C133<>"",UGW,AH132) -> 16 | AI133: 17.69574034 | AJ133: 20.06387505 | AK133: 16.51167299 | AL133: 21.2479424 | AM133: 15.32760563 | AN133: 22.43200975 | AO133: 18.87980769 | AQ133: =IF(AND(C133<>"",C133<UGW),1,0) -> 0 | AR133: =IF(AND(C133<>"",C133>OGW),1,0) -> 0 | BC133: 129 | BD133: =IF(C133="",NA(),SMALL(xi,BE133)) ->  | BF133: =IF(C133="","",NORMSDIST((BD133-Mittelwert)/Standardabweichung)) ->  | BG133: =IF(C133="","",1-BF133) ->  | BH133: =IF(C133="","",SMALL(BG,BE133)) ->  | BI133: =IF(C133="","",(2*BE133-1)*(LN(BH133)+LN(BF133))) ->  | BJ133: =IF(C133="",NA(),NORMSINV((BE133-0.3)/(Anzahl+0.4))) -> 
B134: 130 | AD134: 130 | AE134: 104 | AF134: 20 | AG134: 23 | AH134: 16 | AI134: =AI133 -> 17.69574034 | AJ134: 20.06387505 | AK134: 16.51167299 | AL134: 21.2479424 | AM134: 15.32760563 | AN134: 22.43200975 | AO134: 18.87980769 | AQ134: 0 | AR134: 0 | BC134: 130 | BE134: =IF(C134="","",1+BE133) -> 
B135: 131 | AD135: 131 | AE135: 104 | AF135: 20 | AG135: 23 | AH135: 16 | AI135: 17.69574034 | AJ135: 20.06387505 | AK135: 16.51167299 | AL135: 21.2479424 | AM135: 15.32760563 | AN135: 22.43200975 | AO135: 18.87980769 | AQ135: 0 | AR135: 0 | BC135: 131
B136: 132 | AD136: 132 | AE136: 104 | AF136: =IF(C136<>"",C136,AF135) -> 20 | AG136: 23 | AH136: 16 | AI136: 17.69574034 | AJ136: 20.06387505 | AK136: 16.51167299 | AL136: 21.2479424 | AM136: 15.32760563 | AN136: 22.43200975 | AO136: 18.87980769 | AQ136: 0 | AR136: 0 | BC136: 132
B137: 133 | AD137: 133 | AE137: 104 | AF137: 20 | AG137: 23 | AH137: 16 | AI137: 17.69574034 | AJ137: 20.06387505 | AK137: 16.51167299 | AL137: 21.2479424 | AM137: 15.32760563 | AN137: 22.43200975 | AO137: 18.87980769 | AQ137: 0 | AR137: 0 | BC137: 133
B138: 134 | AD138: 134 | AE138: 104 | AF138: 20 | AG138: 23 | AH138: 16 | AI138: 17.69574034 | AJ138: 20.06387505 | AK138: 16.51167299 | AL138: 21.2479424 | AM138: 15.32760563 | AN138: 22.43200975 | AO138: 18.87980769 | AQ138: 0 | AR138: 0 | BC138: 134
B139: 135 | AD139: 135 | AE139: 104 | AF139: 20 | AG139: 23 | AH139: 16 | AI139: 17.69574034 | AJ139: 20.06387505 | AK139: 16.51167299 | AL139: 21.2479424 | AM139: 15.32760563 | AN139: 22.43200975 | AO139: 18.87980769 | AQ139: 0 | AR139: 0 | BC139: 135
B140: 136 | AD140: 136 | AE140: 104 | AF140: 20 | AG140: 23 | AH140: 16 | AI140: 17.69574034 | AJ140: 20.06387505 | AK140: 16.51167299 | AL140: 21.2479424 | AM140: 15.32760563 | AN140: 22.43200975 | AO140: 18.87980769 | AQ140: 0 | AR140: 0 | BC140: 136
B141: 137 | AD141: 137 | AE141: 104 | AF141: 20 | AG141: 23 | AH141: 16 | AI141: 17.69574034 | AJ141: 20.06387505 | AK141: 16.51167299 | AL141: 21.2479424 | AM141: 15.32760563 | AN141: 22.43200975 | AO141: 18.87980769 | AQ141: 0 | AR141: 0 | BC141: 137
B142: 138 | AD142: 138 | AE142: 104 | AF142: 20 | AG142: 23 | AH142: 16 | AI142: 17.69574034 | AJ142: 20.06387505 | AK142: 16.51167299 | AL142: 21.2479424 | AM142: 15.32760563 | AN142: 22.43200975 | AO142: 18.87980769 | AQ142: 0 | AR142: 0 | BC142: 138
B143: 139 | AD143: 139 | AE143: 104 | AF143: 20 | AG143: 23 | AH143: 16 | AI143: 17.69574034 | AJ143: 20.06387505 | AK143: 16.51167299 | AL143: 21.2479424 | AM143: 15.32760563 | AN143: 22.43200975 | AO143: 18.87980769 | AQ143: 0 | AR143: 0 | BC143: 139
B144: 140 | AD144: 140 | AE144: 104 | AF144: 20 | AG144: 23 | AH144: 16 | AI144: 17.69574034 | AJ144: 20.06387505 | AK144: 16.51167299 | AL144: 21.2479424 | AM144: 15.32760563 | AN144: 22.43200975 | AO144: 18.87980769 | AQ144: 0 | AR144: 0 | BC144: 140
B145: 141 | AD145: 141 | AE145: 104 | AF145: 20 | AG145: 23 | AH145: 16 | AI145: 17.69574034 | AJ145: 20.06387505 | AK145: 16.51167299 | AL145: 21.2479424 | AM145: 15.32760563 | AN145: 22.43200975 | AO145: 18.87980769 | AQ145: 0 | AR145: 0 | BC145: 141
B146: 142 | AD146: 142 | AE146: 104 | AF146: 20 | AG146: 23 | AH146: 16 | AI146: 17.69574034 | AJ146: 20.06387505 | AK146: 16.51167299 | AL146: 21.2479424 | AM146: 15.32760563 | AN146: 22.43200975 | AO146: 18.87980769 | AQ146: 0 | AR146: 0 | BC146: 142
B147: 143 | AD147: 143 | AE147: 104 | AF147: 20 | AG147: 23 | AH147: 16 | AI147: 17.69574034 | AJ147: 20.06387505 | AK147: 16.51167299 | AL147: 21.2479424 | AM147: 15.32760563 | AN147: 22.43200975 | AO147: 18.87980769 | AQ147: 0 | AR147: 0 | BC147: 143
B148: 144 | AD148: 144 | AE148: 104 | AF148: 20 | AG148: 23 | AH148: 16 | AI148: 17.69574034 | AJ148: 20.06387505 | AK148: 16.51167299 | AL148: 21.2479424 | AM148: 15.32760563 | AN148: 22.43200975 | AO148: 18.87980769 | AQ148: 0 | AR148: 0 | BC148: 144
B149: 145 | AD149: 145 | AE149: 104 | AF149: 20 | AG149: 23 | AH149: 16 | AI149: 17.69574034 | AJ149: 20.06387505 | AK149: 16.51167299 | AL149: 21.2479424 | AM149: 15.32760563 | AN149: 22.43200975 | AO149: 18.87980769 | AQ149: 0 | AR149: 0 | BC149: 145
B150: 146 | AD150: 146 | AE150: 104 | AF150: 20 | AG150: 23 | AH150: 16 | AI150: =AI149 -> 17.69574034 | AJ150: 20.06387505 | AK150: 16.51167299 | AL150: 21.2479424 | AM150: 15.32760563 | AN150: 22.43200975 | AO150: 18.87980769 | AQ150: 0 | AR150: 0 | BC150: 146
B151: 147 | AD151: 147 | AE151: 104 | AF151: 20 | AG151: 23 | AH151: 16 | AI151: 17.69574034 | AJ151: 20.06387505 | AK151: 16.51167299 | AL151: 21.2479424 | AM151: 15.32760563 | AN151: 22.43200975 | AO151: 18.87980769 | AQ151: 0 | AR151: 0 | BC151: 147
B152: 148 | AD152: 148 | AE152: 104 | AF152: 20 | AG152: 23 | AH152: 16 | AI152: 17.69574034 | AJ152: 20.06387505 | AK152: 16.51167299 | AL152: 21.2479424 | AM152: 15.32760563 | AN152: 22.43200975 | AO152: 18.87980769 | AQ152: 0 | AR152: 0 | BC152: 148
B153: 149 | AD153: 149 | AE153: 104 | AF153: 20 | AG153: 23 | AH153: 16 | AI153: 17.69574034 | AJ153: 20.06387505 | AK153: 16.51167299 | AL153: 21.2479424 | AM153: 15.32760563 | AN153: 22.43200975 | AO153: 18.87980769 | AQ153: 0 | AR153: 0 | BC153: 149
B154: 150 | AD154: 150 | AE154: 104 | AF154: 20 | AG154: 23 | AH154: 16 | AI154: 17.69574034 | AJ154: 20.06387505 | AK154: 16.51167299 | AL154: 21.2479424 | AM154: 15.32760563 | AN154: 22.43200975 | AO154: 18.87980769 | AQ154: 0 | AR154: 0 | BC154: 150
B155: 151 | C155: =IF(L5="","",L5) ->  | AD155: 151 | AE155: 104 | AF155: 20 | AG155: 23 | AH155: 16 | AI155: 17.69574034 | AJ155: 20.06387505 | AK155: 16.51167299 | AL155: 21.2479424 | AM155: 15.32760563 | AN155: 22.43200975 | AO155: 18.87980769 | AQ155: 0 | AR155: 0 | BC155: 151
B156: 152 | C156: =IF(L6="","",L6) ->  | AD156: 152 | AE156: 104 | AF156: 20 | AG156: 23 | AH156: 16 | AI156: 17.69574034 | AJ156: 20.06387505 | AK156: 16.51167299 | AL156: 21.2479424 | AM156: 15.32760563 | AN156: 22.43200975 | AO156: 18.87980769 | AQ156: 0 | AR156: 0 | BC156: 152
B157: 153 | AD157: 153 | AE157: 104 | AF157: 20 | AG157: 23 | AH157: 16 | AI157: 17.69574034 | AJ157: 20.06387505 | AK157: 16.51167299 | AL157: 21.2479424 | AM157: 15.32760563 | AN157: 22.43200975 | AO157: 18.87980769 | AQ157: 0 | AR157: 0 | BC157: 153
B158: 154 | AD158: 154 | AE158: 104 | AF158: 20 | AG158: 23 | AH158: 16 | AI158: 17.69574034 | AJ158: 20.06387505 | AK158: 16.51167299 | AL158: 21.2479424 | AM158: 15.32760563 | AN158: 22.43200975 | AO158: 18.87980769 | AQ158: 0 | AR158: 0 | BC158: 154
B159: 155 | AD159: 155 | AE159: 104 | AF159: 20 | AG159: 23 | AH159: 16 | AI159: 17.69574034 | AJ159: 20.06387505 | AK159: 16.51167299 | AL159: 21.2479424 | AM159: 15.32760563 | AN159: 22.43200975 | AO159: 18.87980769 | AQ159: 0 | AR159: 0 | BC159: 155
B160: 156 | AD160: 156 | AE160: 104 | AF160: 20 | AG160: 23 | AH160: 16 | AI160: 17.69574034 | AJ160: 20.06387505 | AK160: 16.51167299 | AL160: 21.2479424 | AM160: 15.32760563 | AN160: 22.43200975 | AO160: 18.87980769 | AQ160: 0 | AR160: 0 | BC160: 156
B161: 157 | AD161: 157 | AE161: 104 | AF161: 20 | AG161: 23 | AH161: 16 | AI161: 17.69574034 | AJ161: 20.06387505 | AK161: 16.51167299 | AL161: 21.2479424 | AM161: 15.32760563 | AN161: 22.43200975 | AO161: 18.87980769 | AQ161: 0 | AR161: 0 | BC161: 157
B162: 158 | AD162: 158 | AE162: 104 | AF162: 20 | AG162: 23 | AH162: 16 | AI162: 17.69574034 | AJ162: 20.06387505 | AK162: 16.51167299 | AL162: 21.2479424 | AM162: 15.32760563 | AN162: 22.43200975 | AO162: 18.87980769 | AQ162: 0 | AR162: 0 | BC162: 158
B163: 159 | AD163: 159 | AE163: 104 | AF163: 20 | AG163: 23 | AH163: 16 | AI163: 17.69574034 | AJ163: 20.06387505 | AK163: 16.51167299 | AL163: 21.2479424 | AM163: 15.32760563 | AN163: 22.43200975 | AO163: 18.87980769 | AQ163: 0 | AR163: 0 | BC163: 159
B164: 160 | AD164: 160 | AE164: 104 | AF164: 20 | AG164: 23 | AH164: 16 | AI164: 17.69574034 | AJ164: 20.06387505 | AK164: 16.51167299 | AL164: 21.2479424 | AM164: 15.32760563 | AN164: 22.43200975 | AO164: 18.87980769 | AQ164: 0 | AR164: 0 | BC164: 160
B165: 161 | AD165: 161 | AE165: =IF((Anzahl>AD165),AD165,Anzahl) -> 104 | AF165: 20 | AG165: =IF(C165<>"",OGW,AG164) -> 23 | AH165: =IF(C165<>"",UGW,AH164) -> 16 | AI165: 17.69574034 | AJ165: 20.06387505 | AK165: 16.51167299 | AL165: 21.2479424 | AM165: 15.32760563 | AN165: 22.43200975 | AO165: 18.87980769 | AQ165: =IF(AND(C165<>"",C165<UGW),1,0) -> 0 | AR165: =IF(AND(C165<>"",C165>OGW),1,0) -> 0 | BC165: 161 | BD165: =IF(C165="",NA(),SMALL(xi,BE165)) ->  | BF165: =IF(C165="","",NORMSDIST((BD165-Mittelwert)/Standardabweichung)) ->  | BG165: =IF(C165="","",1-BF165) ->  | BH165: =IF(C165="","",SMALL(BG,BE165)) ->  | BI165: =IF(C165="","",(2*BE165-1)*(LN(BH165)+LN(BF165))) ->  | BJ165: =IF(C165="",NA(),NORMSINV((BE165-0.3)/(Anzahl+0.4))) -> 
B166: 162 | AD166: 162 | AE166: 104 | AF166: 20 | AG166: 23 | AH166: 16 | AI166: =AI165 -> 17.69574034 | AJ166: 20.06387505 | AK166: 16.51167299 | AL166: 21.2479424 | AM166: 15.32760563 | AN166: 22.43200975 | AO166: 18.87980769 | AQ166: 0 | AR166: 0 | BC166: 162 | BE166: =IF(C166="","",1+BE165) -> 
B167: 163 | AD167: 163 | AE167: 104 | AF167: 20 | AG167: 23 | AH167: 16 | AI167: 17.69574034 | AJ167: 20.06387505 | AK167: 16.51167299 | AL167: 21.2479424 | AM167: 15.32760563 | AN167: 22.43200975 | AO167: 18.87980769 | AQ167: 0 | AR167: 0 | BC167: 163
B168: 164 | AD168: 164 | AE168: 104 | AF168: 20 | AG168: 23 | AH168: 16 | AI168: 17.69574034 | AJ168: 20.06387505 | AK168: 16.51167299 | AL168: 21.2479424 | AM168: 15.32760563 | AN168: 22.43200975 | AO168: 18.87980769 | AQ168: 0 | AR168: 0 | BC168: 164
B169: 165 | AD169: 165 | AE169: 104 | AF169: 20 | AG169: 23 | AH169: 16 | AI169: 17.69574034 | AJ169: 20.06387505 | AK169: 16.51167299 | AL169: 21.2479424 | AM169: 15.32760563 | AN169: 22.43200975 | AO169: 18.87980769 | AQ169: 0 | AR169: 0 | BC169: 165
B170: 166 | AD170: 166 | AE170: 104 | AF170: 20 | AG170: 23 | AH170: 16 | AI170: 17.69574034 | AJ170: 20.06387505 | AK170: 16.51167299 | AL170: 21.2479424 | AM170: 15.32760563 | AN170: 22.43200975 | AO170: 18.87980769 | AQ170: 0 | AR170: 0 | BC170: 166
B171: 167 | AD171: 167 | AE171: 104 | AF171: 20 | AG171: 23 | AH171: 16 | AI171: 17.69574034 | AJ171: 20.06387505 | AK171: 16.51167299 | AL171: 21.2479424 | AM171: 15.32760563 | AN171: 22.43200975 | AO171: 18.87980769 | AQ171: 0 | AR171: 0 | BC171: 167
B172: 168 | AD172: 168 | AE172: 104 | AF172: 20 | AG172: 23 | AH172: 16 | AI172: 17.69574034 | AJ172: 20.06387505 | AK172: 16.51167299 | AL172: 21.2479424 | AM172: 15.32760563 | AN172: 22.43200975 | AO172: 18.87980769 | AQ172: 0 | AR172: 0 | BC172: 168
B173: 169 | AD173: 169 | AE173: 104 | AF173: 20 | AG173: 23 | AH173: 16 | AI173: 17.69574034 | AJ173: 20.06387505 | AK173: 16.51167299 | AL173: 21.2479424 | AM173: 15.32760563 | AN173: 22.43200975 | AO173: 18.87980769 | AQ173: 0 | AR173: 0 | BC173: 169
B174: 170 | AD174: 170 | AE174: 104 | AF174: 20 | AG174: 23 | AH174: 16 | AI174: 17.69574034 | AJ174: 20.06387505 | AK174: 16.51167299 | AL174: 21.2479424 | AM174: 15.32760563 | AN174: 22.43200975 | AO174: 18.87980769 | AQ174: 0 | AR174: 0 | BC174: 170
B175: 171 | AD175: 171 | AE175: 104 | AF175: 20 | AG175: 23 | AH175: 16 | AI175: 17.69574034 | AJ175: 20.06387505 | AK175: 16.51167299 | AL175: 21.2479424 | AM175: 15.32760563 | AN175: 22.43200975 | AO175: 18.87980769 | AQ175: 0 | AR175: 0 | BC175: 171
B176: 172 | AD176: 172 | AE176: 104 | AF176: 20 | AG176: 23 | AH176: 16 | AI176: 17.69574034 | AJ176: 20.06387505 | AK176: 16.51167299 | AL176: 21.2479424 | AM176: 15.32760563 | AN176: 22.43200975 | AO176: 18.87980769 | AQ176: 0 | AR176: 0 | BC176: 172
B177: 173 | AD177: 173 | AE177: 104 | AF177: 20 | AG177: 23 | AH177: 16 | AI177: 17.69574034 | AJ177: 20.06387505 | AK177: 16.51167299 | AL177: 21.2479424 | AM177: 15.32760563 | AN177: 22.43200975 | AO177: 18.87980769 | AQ177: 0 | AR177: 0 | BC177: 173
B178: 174 | AD178: 174 | AE178: 104 | AF178: 20 | AG178: 23 | AH178: 16 | AI178: 17.69574034 | AJ178: 20.06387505 | AK178: 16.51167299 | AL178: 21.2479424 | AM178: 15.32760563 | AN178: 22.43200975 | AO178: 18.87980769 | AQ178: 0 | AR178: 0 | BC178: 174
B179: 175 | AD179: 175 | AE179: 104 | AF179: 20 | AG179: 23 | AH179: 16 | AI179: 17.69574034 | AJ179: 20.06387505 | AK179: 16.51167299 | AL179: 21.2479424 | AM179: 15.32760563 | AN179: 22.43200975 | AO179: 18.87980769 | AQ179: 0 | AR179: 0 | BC179: 175
B180: 176 | AD180: 176 | AE180: 104 | AF180: 20 | AG180: 23 | AH180: 16 | AI180: 17.69574034 | AJ180: 20.06387505 | AK180: 16.51167299 | AL180: 21.2479424 | AM180: 15.32760563 | AN180: 22.43200975 | AO180: 18.87980769 | AQ180: 0 | AR180: 0 | BC180: 176
B181: 177 | AD181: 177 | AE181: 104 | AF181: 20 | AG181: 23 | AH181: 16 | AI181: 17.69574034 | AJ181: 20.06387505 | AK181: 16.51167299 | AL181: 21.2479424 | AM181: 15.32760563 | AN181: 22.43200975 | AO181: 18.87980769 | AQ181: 0 | AR181: 0 | BC181: 177
B182: 178 | AD182: 178 | AE182: 104 | AF182: 20 | AG182: 23 | AH182: 16 | AI182: =AI181 -> 17.69574034 | AJ182: 20.06387505 | AK182: 16.51167299 | AL182: 21.2479424 | AM182: 15.32760563 | AN182: 22.43200975 | AO182: 18.87980769 | AQ182: 0 | AR182: 0 | BC182: 178
B183: 179 | AD183: 179 | AE183: 104 | AF183: 20 | AG183: 23 | AH183: 16 | AI183: 17.69574034 | AJ183: 20.06387505 | AK183: 16.51167299 | AL183: 21.2479424 | AM183: 15.32760563 | AN183: 22.43200975 | AO183: 18.87980769 | AQ183: 0 | AR183: 0 | BC183: 179
B184: 180 | AD184: 180 | AE184: 104 | AF184: 20 | AG184: 23 | AH184: 16 | AI184: 17.69574034 | AJ184: 20.06387505 | AK184: 16.51167299 | AL184: 21.2479424 | AM184: 15.32760563 | AN184: 22.43200975 | AO184: 18.87980769 | AQ184: 0 | AR184: 0 | BC184: 180
B185: 181 | AD185: 181 | AE185: 104 | AF185: 20 | AG185: 23 | AH185: 16 | AI185: 17.69574034 | AJ185: 20.06387505 | AK185: 16.51167299 | AL185: 21.2479424 | AM185: 15.32760563 | AN185: 22.43200975 | AO185: 18.87980769 | AQ185: 0 | AR185: 0 | BC185: 181
B186: 182 | AD186: 182 | AE186: 104 | AF186: 20 | AG186: 23 | AH186: 16 | AI186: 17.69574034 | AJ186: 20.06387505 | AK186: 16.51167299 | AL186: 21.2479424 | AM186: 15.32760563 | AN186: 22.43200975 | AO186: 18.87980769 | AQ186: 0 | AR186: 0 | BC186: 182
B187: 183 | AD187: 183 | AE187: 104 | AF187: 20 | AG187: 23 | AH187: 16 | AI187: 17.69574034 | AJ187: 20.06387505 | AK187: 16.51167299 | AL187: 21.2479424 | AM187: 15.32760563 | AN187: 22.43200975 | AO187: 18.87980769 | AQ187: 0 | AR187: 0 | BC187: 183
B188: 184 | AD188: 184 | AE188: 104 | AF188: 20 | AG188: 23 | AH188: 16 | AI188: 17.69574034 | AJ188: 20.06387505 | AK188: 16.51167299 | AL188: 21.2479424 | AM188: 15.32760563 | AN188: 22.43200975 | AO188: 18.87980769 | AQ188: 0 | AR188: 0 | BC188: 184
B189: 185 | AD189: 185 | AE189: 104 | AF189: 20 | AG189: 23 | AH189: 16 | AI189: 17.69574034 | AJ189: 20.06387505 | AK189: 16.51167299 | AL189: 21.2479424 | AM189: 15.32760563 | AN189: 22.43200975 | AO189: 18.87980769 | AQ189: 0 | AR189: 0 | BC189: 185
B190: 186 | AD190: 186 | AE190: 104 | AF190: 20 | AG190: 23 | AH190: 16 | AI190: 17.69574034 | AJ190: 20.06387505 | AK190: 16.51167299 | AL190: 21.2479424 | AM190: 15.32760563 | AN190: 22.43200975 | AO190: 18.87980769 | AQ190: 0 | AR190: 0 | BC190: 186
B191: 187 | AD191: 187 | AE191: 104 | AF191: 20 | AG191: 23 | AH191: 16 | AI191: 17.69574034 | AJ191: 20.06387505 | AK191: 16.51167299 | AL191: 21.2479424 | AM191: 15.32760563 | AN191: 22.43200975 | AO191: 18.87980769 | AQ191: 0 | AR191: 0 | BC191: 187
B192: 188 | AD192: 188 | AE192: 104 | AF192: 20 | AG192: 23 | AH192: 16 | AI192: 17.69574034 | AJ192: 20.06387505 | AK192: 16.51167299 | AL192: 21.2479424 | AM192: 15.32760563 | AN192: 22.43200975 | AO192: 18.87980769 | AQ192: 0 | AR192: 0 | BC192: 188
B193: 189 | AD193: 189 | AE193: 104 | AF193: 20 | AG193: 23 | AH193: 16 | AI193: 17.69574034 | AJ193: 20.06387505 | AK193: 16.51167299 | AL193: 21.2479424 | AM193: 15.32760563 | AN193: 22.43200975 | AO193: 18.87980769 | AQ193: 0 | AR193: 0 | BC193: 189
B194: 190 | AD194: 190 | AE194: 104 | AF194: 20 | AG194: 23 | AH194: 16 | AI194: 17.69574034 | AJ194: 20.06387505 | AK194: 16.51167299 | AL194: 21.2479424 | AM194: 15.32760563 | AN194: 22.43200975 | AO194: 18.87980769 | AQ194: 0 | AR194: 0 | BC194: 190
B195: 191 | AD195: 191 | AE195: 104 | AF195: 20 | AG195: 23 | AH195: 16 | AI195: 17.69574034 | AJ195: 20.06387505 | AK195: 16.51167299 | AL195: 21.2479424 | AM195: 15.32760563 | AN195: 22.43200975 | AO195: 18.87980769 | AQ195: 0 | AR195: 0 | BC195: 191
B196: 192 | AD196: 192 | AE196: 104 | AF196: 20 | AG196: 23 | AH196: 16 | AI196: 17.69574034 | AJ196: 20.06387505 | AK196: 16.51167299 | AL196: 21.2479424 | AM196: 15.32760563 | AN196: 22.43200975 | AO196: 18.87980769 | AQ196: 0 | AR196: 0 | BC196: 192
B197: 193 | AD197: 193 | AE197: =IF((Anzahl>AD197),AD197,Anzahl) -> 104 | AF197: 20 | AG197: =IF(C197<>"",OGW,AG196) -> 23 | AH197: =IF(C197<>"",UGW,AH196) -> 16 | AI197: 17.69574034 | AJ197: 20.06387505 | AK197: 16.51167299 | AL197: 21.2479424 | AM197: 15.32760563 | AN197: 22.43200975 | AO197: 18.87980769 | AQ197: =IF(AND(C197<>"",C197<UGW),1,0) -> 0 | AR197: =IF(AND(C197<>"",C197>OGW),1,0) -> 0 | BC197: 193 | BD197: =IF(C197="",NA(),SMALL(xi,BE197)) ->  | BF197: =IF(C197="","",NORMSDIST((BD197-Mittelwert)/Standardabweichung)) ->  | BG197: =IF(C197="","",1-BF197) ->  | BH197: =IF(C197="","",SMALL(BG,BE197)) ->  | BI197: =IF(C197="","",(2*BE197-1)*(LN(BH197)+LN(BF197))) ->  | BJ197: =IF(C197="",NA(),NORMSINV((BE197-0.3)/(Anzahl+0.4))) -> 
B198: 194 | AD198: 194 | AE198: 104 | AF198: 20 | AG198: 23 | AH198: 16 | AI198: =AI197 -> 17.69574034 | AJ198: 20.06387505 | AK198: 16.51167299 | AL198: 21.2479424 | AM198: 15.32760563 | AN198: 22.43200975 | AO198: 18.87980769 | AQ198: 0 | AR198: 0 | BC198: 194 | BE198: =IF(C198="","",1+BE197) -> 
B199: 195 | AD199: 195 | AE199: 104 | AF199: 20 | AG199: 23 | AH199: 16 | AI199: 17.69574034 | AJ199: 20.06387505 | AK199: 16.51167299 | AL199: 21.2479424 | AM199: 15.32760563 | AN199: 22.43200975 | AO199: 18.87980769 | AQ199: 0 | AR199: 0 | BC199: 195
B200: 196 | AD200: 196 | AE200: 104 | AF200: =IF(C200<>"",C200,AF199) -> 20 | AG200: 23 | AH200: 16 | AI200: 17.69574034 | AJ200: 20.06387505 | AK200: 16.51167299 | AL200: 21.2479424 | AM200: 15.32760563 | AN200: 22.43200975 | AO200: 18.87980769 | AQ200: 0 | AR200: 0 | BC200: 196
B201: 197 | AD201: 197 | AE201: 104 | AF201: =IF(C201<>"",C201,AF200) -> 20 | AG201: 23 | AH201: 16 | AI201: 17.69574034 | AJ201: 20.06387505 | AK201: 16.51167299 | AL201: 21.2479424 | AM201: 15.32760563 | AN201: 22.43200975 | AO201: 18.87980769 | AQ201: 0 | AR201: 0 | BC201: 197
... 4 more rows
